{"text_format":"1","workbook":"xlsx","n_sheets":5,"sheets":["Bauansuchen","Baubeschreibung","AGWR II","Beiblätter NE","Vorgaben"],"not_rendered":{"charts":0,"images":1,"macros":1,"external_links":0,"defined_names":44,"comments":4,"pivot_tables":0},"unopened":[],"bounds":{"document_bytes":16777216,"sheet_cells":100000,"rows_first":2000,"rows_last":500,"rows_between":2000,"halvings":0,"cell_chars":16384,"cell_head_chars":4096},"cells_cut":0,"cells_raw":0,"read":"whole","date_system":"1900"}

{"sheet":"Bauansuchen","index":0,"n_rows":57,"n_cols":23,"rows_kept":57,"cut":false,"hidden":false,"merged":[[11,8,11,21],[24,12,24,14],[56,13,56,21],[30,3,30,21],[55,9,55,11],[55,13,55,21],[46,3,46,21],[45,3,45,21],[22,2,22,21],[36,3,38,21],[55,2,55,7],[31,3,31,21],[13,8,13,21],[14,8,14,21],[20,2,20,21],[19,2,19,21],[15,8,15,21],[47,3,47,21],[48,3,48,21],[49,3,49,21],[33,3,33,21],[43,5,43,21],[34,3,34,21],[41,4,41,21],[28,3,28,21],[44,3,44,21],[40,3,40,21],[17,2,17,13],[2,10,2,14],[4,10,4,14],[7,10,8,14],[11,2,11,7],[32,3,32,21],[24,16,24,21],[29,3,29,21],[24,9,24,10],[2,2,4,8],[12,8,12,21],[2,16,8,21],[5,13,5,14],[5,10,5,11],[3,10,3,14],[18,2,18,21],[21,2,21,21]]}
[]
[]
[null,null,"BAUANSUCHEN",null,null,null,null,null,null,null,"BUNDESGEBÜHR",null,null,null,null,null,"Einlaufstempel"]
[null,null,null,null,null,null,null,null,null,null,14.3]
[null,null,null,null,null,null,null,null,null,null,"Registriert unter Verzeichnis"]
[null,null,null,null,null,null,null,null,null,null,"Nr.",null,null,{"$f":"YEAR(BauansDat)","v":1900}]
[]
[null,null,null,null,null,null,null,null,null,null,"Zahl:"]
[]
[]
[]
[null,null,{"$f":"IF(OR(Gemeinde=\"9990 Nußdorf-Debant\",Gemeinde=\"9920 Sillian\",Gemeinde=\"9971 Matrei in Osttirol\"),\"An die Marktgemeinde:\",\"An die Gemeinde:\")","v":"An die Gemeinde:"},null,null,null,null,null,"Bitte auswählen ..."]
[null,null,"Der/Die gefertigte Bauwerber/in:"]
[null,null,"wohnhaft in (Straße HNr., Ort):"]
[null,null,"Telefon-Nummer:"]
[null,null,"E-Mail-Adresse:"]
[]
[null,null,"beantragt die Baubewilligung für (Aufzählung der Baumaßnahmen):"]
[]
[]
[]
[]
[]
[]
[null,null,"auf dem Grundstück",null,null,null,null,null,"Nr.",null,null,"EZ:",null,null,null,"KG:",null,null,null,null,null,null,true]
[]
[null,null,"Dem Bauansuchen angeschlossen sind:"]
[]
[null,null,null,"Baubeschreibung (3-fach)"]
[null,null,null,"Baupläne im Maßstab 1:100 (3-fach)"]
[null,null,null,"Lagepläne im Maßstab 1:500 oder größer (3-fach)"]
[null,null,null,"Energieausweis (3-fach, bei Bauvorhaben gem. § 19c Abs. 1 lit. a, b, c TBO) oder"]
[null,null,null,"U-Wert-Ermittlung (bei konditionierten Gebäuden)"]
[null,null,null,"Baumassenberechnung nach dem TVAG (bei Neu-, Zu- und Umbauten)"]
[null,null,null,"Die o.a. Unterlagen sind vom Bauwerber/von der Bauwerberin und vom jew. Verfasser zu unterfertigen."]
[]
[null,null,null,"Bei Neu- oder Zubauten der Nachweis des Eigentums oder des Baurechtes am Bauplatz (Grundbuch-\nsauszug) oder die grundverkehrsbehördlich angezeigte Zustimmung des Grundeigentümers zum Bauvorhaben."]
[]
[]
[]
[null,null,null,"Beiblatt AGWR II (statistische Angaben zum Adress-, Gebäude- und Wohnungs-Register)"]
[null,null,null,null,"Beiblatt/blätter betr. weitere Nutzungseinheiten (AGWR II)"]
[]
[null,null,null,"Sonstiges:"]
[]
[]
[]
[]
[]
[]
[]
[null,null,null,null,null,null,null,null,null,null,null,null,null,"Unterschrift Bauwerber/in:"]
[]
[]
[]
[]
[null,null,"Ort",null,null,null,null,null,null,"Datum",null,null,null,{"$f":"CONCATENATE(\"(\",Bauwerber,\")\")","v":"()"}]

{"sheet":"Baubeschreibung","index":1,"n_rows":456,"n_cols":24,"rows_kept":456,"cut":false,"hidden":false,"merged":[[113,1,113,19],[93,3,93,21],[103,2,103,21],[100,3,100,21],[96,3,96,21],[85,2,85,9],[87,2,87,9],[88,10,88,21],[87,10,87,11],[86,10,86,21],[87,13,87,14],[97,3,97,21],[98,3,98,21],[99,3,99,21],[92,3,92,21],[105,12,105,16],[105,2,105,6],[94,3,94,21],[95,3,95,21],[105,18,105,20],[105,8,105,10],[60,14,60,15],[40,9,40,21],[36,13,36,21],[56,1,56,19],[57,2,57,21],[59,9,59,13],[43,9,43,21],[83,2,83,9],[81,19,81,21],[82,19,82,21],[83,19,83,21],[79,2,79,7],[72,2,72,21],[71,18,71,20],[71,10,71,12],[65,9,65,10],[52,2,52,21],[59,18,59,21],[61,14,61,21],[60,9,60,13],[62,9,62,21],[63,9,63,21],[61,2,61,8],[53,2,53,21],[84,19,84,21],[83,15,83,17],[84,15,84,17],[64,9,64,10],[65,14,65,17],[80,2,80,9],[77,10,77,21],[69,2,69,9],[79,19,79,21],[80,19,80,21],[68,14,68,17],[79,15,79,17],[78,19,78,21],[68,18,68,20],[69,14,69,17],[78,15,78,17],[69,18,69,20],[69,10,69,12],[67,2,67,15],[68,10,68,12],[68,2,68,9],[65,11,65,13],[65,18,65,20],[65,2,65,8],[54,2,54,21],[71,2,71,9],[18,2,18,21],[17,2,17,21],[21,2,21,21],[20,2,20,21],[33,9,33,21],[31,9,31,21],[32,9,32,21],[28,12,28,13],[28,9,28,11],[19,2,19,21],[24,2,24,21],[28,15,28,21],[28,6,28,7],[42,9,42,21],[29,9,29,10],[22,2,22,21],[34,9,34,21],[50,2,50,21],[51,2,51,21],[23,2,23,21],[55,2,55,21],[38,9,38,21],[35,9,35,21],[49,2,49,21],[39,9,39,21],[45,9,45,21],[44,9,44,21],[37,9,37,21],[41,9,41,21],[2,9,7,14],[12,8,12,10],[13,8,13,21],[14,8,14,21],[2,16,7,21],[9,16,9,21],[10,16,10,21],[11,16,11,21],[12,16,12,17],[10,2,11,9],[2,2,7,7],[46,9,46,21]]}
[]
[]
[null,null,"Prüfvermerk\ndes hochbautechnischen Sachverständigen:",null,null,null,null,null,null,"Genehmigungsvermerk \nder Baubehörde:",null,null,null,null,null,null,"Einlaufstempel:"]
[]
[]
[]
[]
[]
[]
[null,null,null,null,null,null,null,null,null,null,null,null,null,null,null,null,"BUNDESGEBÜHR"]
[null,null,"Baubeschreibung",null,null,null,null,null,null,null,null,null,null,null,null,null,3.9]
[null,null,null,null,null,null,null,null,null,null,null,null,null,null,null,null,"Registriert unter Verzeichnis"]
[null,null,"Zum Bauansuchen vom:",null,null,null,null,null,{"$f":"BauansDat","v":"00:00:00"},null,null,null,null,null,null,null,"Nr.",null,null,{"$f":"YEAR(BauansDat)","v":1900}]
[null,null,{"$f":"IF(OR(Gemeinde=\"9990 Nußdorf-Debant\",Gemeinde=\"9920 Sillian\",Gemeinde=\"9971 Matrei in Osttirol\"),\"Gerichtet an die Marktgemeinde:\",\"Gerichtet an die Gemeinde:\")","v":"Gerichtet an die Gemeinde:"},null,null,null,null,null,{"$f":"Gemeinde","v":"Bitte auswählen ..."}]
[null,null,"Name/Adresse Bauwerber/in:",null,null,null,null,null,{"$f":"CONCATENATE(Bauwerber,\", \",AdrBauwerber)","v":", "}]
[]
[null,1,"Beschreibung des Bauvorhabens (Art, Konstruktion, Verwendungszweck udgl.)"]
[]
[]
[]
[]
[]
[]
[]
[]
[]
[null,2,"Angaben zum Bauplatz"]
[]
[null,null,"Grundstück-Nr.",null,null,{"$f":"IF(Bauansuchen!W25=TRUE,\"Gp.\",\"Bp.\")","v":"Gp."},{"$f":"Gst","v":0},null,null,"Einlagezahl:",null,null,{"$f":"Ezl","v":0},null,"KG:",{"$f":"KatGem","v":0}]
[null,null,"Größe des Bauplatzes:",null,null,null,null,null,null,null,null,"m²"]
[null,null,"Der/die Bauwerber/in ist/sind grundbücherliche(r) Eigentümer/in des Bauplatzes:",null,null,null,null,null,null,null,null,null,null,null,null,null,null,null,null,null,null,null,false,false]
[null,null,"Eigentümer/in lt. Grundbuchstand:",null,null,null,null,null,null,{"$f":"IF(W31=TRUE,CONCATENATE(Bauwerber,\", \",AdrBauwerber),\"\")","v":""},null,null,null,null,null,null,null,null,null,null,null,null,{"$f":"IF(W31=TRUE,CONCATENATE(Bauwerber,\", \",AdrBauwerber),\"\")","v":""}]
[]
[]
[null,null,"Widmung lt. Flächenwidmungsplan:",null,null,null,null,null,null,"Bitte auswählen ..."]
[]
[null,null,"Bebauungsplan vorhanden?",null,null,null,null,null,null,null,null,null,null,{"$f":"IF(W37=FALSE,\"\",\"(Bitte detaillierte Angaben unter Pt. 5)\")","v":""},null,null,null,null,null,null,null,null,false,false]
[null,null,"Zufahrt über:",null,null,null,null,null,null,"Bitte auswählen ..."]
[null,null,{"$f":"IF(J38=\"Öffentlich rechtliche Straßeninteressentschaft(en)\",\"Bezeichnung, Obmann u. Adresse:\",\"\")","v":""}]
[null,null,"Nutzungsbeschränkung:"]
[null,null,"Gefahrenzone:"]
[null,null,"Wasserversorgung:",null,null,null,null,null,null,"Bitte auswählen ..."]
[null,null,{"$f":"IF(J42=\"Anschluss an eine Genossenschaftsleitung\",\"Bezeichnung, Obmann u. Adresse:\",\"\")","v":""}]
[null,null,"Abwasserentsorgung:",null,null,null,null,null,null,"Bitte auswählen ..."]
[null,null,"Niederschlagswasserentsorgung:",null,null,null,null,null,null,"Bitte auswählen ..."]
[null,null,"Energieversorgung:",null,null,null,null,null,null,"Bitte auswählen ..."]
[null,null,{"$f":"IF(J46=\"Sonstiger Energieversorger\",\"Name d. sonst. Energieversorgers:\",\"\")","v":""}]
[]
[null,3,"Art der Konstruktion - Bauweise (geschoßweise Angaben bei Gebäuden):"]
[]
[]
[]
[]
[]
[]
[]
[null,{"$f":"IF(BauansDat<>\"\",CONCATENATE(\"Baubeschreibung zum Bauansuchen vom \",TEXT(BauansDat,\"TT.MM.JJJJ\"), \" - Bauwerber/in: \", Bauwerber,\", \",AdrBauwerber),CONCATENATE(\"Baubeschreibung\", \" - Bauwerber/in: \", Bauwerber,\", \",AdrBauwerber))","v":"Baubeschreibung - Bauwerber/in: , "},null,null,null,null,null,null,null,null,null,null,null,null,null,null,null,null,null,null,null,"Seite 1"]
[null,4,"Technische Angaben zum Bauvorhaben | Baumassen"]
[]
[null,null,"Farbe der Fassade:",null,null,null,null,null,null,null,null,null,null,null,"Farbe des Daches:"]
[null,null,"Art der Rauch- und Abgasfänge:",null,null,null,null,null,null,null,null,null,null,null,"Lichte Æ:",null,null,"cm",null,"cm",null,"cm"]
[null,null,"Blitzschutzanlage:",null,null,null,null,null,null,null,null,null,null,{"$f":"IF(W62=TRUE,\"Art:\",\"\")","v":""},null,null,null,null,null,null,null,null,false]
[null,null,"Brandschutzeinrichtungen:"]
[null,null,"Art und Leistung der Heizung:"]
[null,null,"Anz. der vorgesehenen Kfz-Stellplätze:",null,null,null,null,null,null,null,null,{"$f":"IF(J65>0,\"(Kfz-Stellplätze sind in den Plänen darzustellen)\",\"\")","v":""}]
[null,null,"Wärmebedarf des Gebäudes:",null,null,null,null,null,null,null,null,"[kWh/m²*a]",null,null,"Bebaute Fläche:",null,null,null,null,null,null,"m²"]
[]
[null,null,"Baumassen lt. § 2 (5) Tiroler Verkehrsaufschließungsabgabegesetz (TVAG):"]
[null,null,"Baumasse Neu:",null,null,null,null,null,null,null,null,null,null,"m³","Baumasse Abbruch:",null,null,null,null,null,null,"m³"]
[null,null,"Baumasse Altbestand am Bauplatz:",null,null,null,null,null,null,null,null,null,null,"m³","Baumasse Umbau:",null,null,null,null,null,null,"m³"]
[]
[null,null,"Baumasse lt. § 61 (3) TROG 2016",null,null,null,null,null,null,null,null,null,null,"m³"]
[null,null,"(bei festgelegter Baumassendichte - Bebauungsplan oder Wohngebäude im Freiland - § 42 TROG 2016)"]
[]
[null,null,"Schriftliche und nachvollziehbare Berechnungen sind beizulegen."]
[]
[]
[null,5,"Festlegungen des Bebauungsplanes",null,null,null,null,null,null,null,{"$f":"IF(X37=TRUE,\"(hier keine Angaben erforderlich, da kein Bebauungsplan besteht)\",\"\")","v":""}]
[null,null,null,null,null,null,null,null,null,null,null,null,null,null,null,"Lt. Bebauungsplan",null,null,null,"Lt. Bauplanung"]
[null,null,"Bauweise (§ 60 TROG 2016)",null,null,null,null,null,null,null,null,null,null,null,null,"Bitte auswählen ...",null,null,"-","Bitte auswählen ..."]
[null,null,"Art/Werte der Baudichte (§ 61 TROG 2016):",null,null,null,null,null,null,null,null,null,null,null,"M:",null,"H:",null,"-"]
[null,null,null,null,null,null,null,null,null,null,null,null,null,null,"M:",null,"H:",null,"-"]
[null,null,null,null,null,null,null,null,null,null,null,null,null,null,"M:",null,"H:",null,"-"]
[null,null,"Bauhöhe (§ 62 TROG 2016 - oberster Punkt):",null,null,null,null,null,null,null,null,null,null,null,null,null,null,null,"-"]
[null,null,"Anzahl der oberirdischen Geschoße:",null,null,null,null,null,null,null,null,null,null,null,null,null,null,null,"-"]
[null,null,"Wird die Baufluchtlinie überbaut?",null,null,null,null,null,null,null,null,null,null,null,null,null,null,null,null,null,null,null,false]
[null,null,{"$f":"IF(W86=TRUE,\"Überbauung mit folgenden Bauteilen:\",\"\")","v":""}]
[null,null,"Wird die Baugrenzlinie überbaut?",null,null,null,null,null,null,null,null,null,null,null,null,null,null,null,null,null,null,null,false]
[null,null,{"$f":"IF(W88=TRUE,\"Überbauung mit folgenden Bauteilen:\",\"\")","v":""}]
[]
[]
[null,6,"Sonstige Angaben"]
[null,null,null,"Das Bauvorhaben wurde in Übereinstimmung mit den techn. Bauvorschriften und den OIB-Richtlinien geplant."]
[null,null,null,"Das Bauvorhaben weicht in folgenden Punkten von den OIB-Richtlinien ab:"]
[]
[]
[null,null,null,"Die Rechtmäßigkeit des Baubestandes wurde überprüft und wird bestätigt (bei Zu- und Umbauten)."]
[null,null,null,"Der Baubestand weicht in folgenden Punkten von der Baubewilligung ab:"]
[]
[]
[null,null,null,"Alternativenprüfung betr. Heizsystem wurde durchgeführt (erforderlich beim Neubau von Gebäuden)"]
[]
[]
[null,7,"Die Richtigkeit und Vollständigkeit der gemachten Angaben wird bestätigt:"]
[]
[null,null,{"$f":"BauansOrt","v":0},null,null,null,null,null,{"$f":"BauansDat","v":"00:00:00"}]
[null,null,"Ort",null,null,null,null,null,"Datum",null,null,null,"Ort",null,null,null,null,null,"Datum"]
[null,null,"Unterschrift Bauwerber/in:",null,null,null,null,null,null,null,null,null,"Unterschrift und Stempel des Planers:"]
[]
[]
[]
[]
[null,null,{"$f":"CONCATENATE(\"(\",Bauwerber,\")\")","v":"()"}]
[null,{"$f":"IF(BauansDat<>\"\",CONCATENATE(\"Baubeschreibung zum Bauansuchen vom \",TEXT(BauansDat,\"TT.MM.JJJJ\"), \" - Bauwerber/in: \", Bauwerber,\", \",AdrBauwerber),CONCATENATE(\"Baubeschreibung\", \" - Bauwerber/in: \", Bauwerber,\", \",AdrBauwerber))","v":"Baubeschreibung - Bauwerber/in: , "},null,null,null,null,null,null,null,null,null,null,null,null,null,null,null,null,null,null,null,"Seite 2"]
[]
[]
[]
[]
[]
[]
[]
[]
[]
[]
[]
[]
[]
[]
[]
[]
[]
[]
[]
[]
[]
[]
[]
[]
[]
[]
[]
[]
[]
[]
[]
[]
[]
[]
[]
[]
[]
[]
[]
[]
[]
[]
[]
[]
[]
[]
[]
[]
[]
[]
[]
[]
[]
[]
[]
[]
[]
[]
[]
[]
[]
[]
[]
[]
[]
[]
[]
[]
[]
[]
[]
[]
[]
[]
[]
[]
[]
[]
[]
[]
[]
[]
[]
[]
[]
[]
[]
[]
[]
[]
[]
[]
[]
[]
[]
[]
[]
[]
[]
[]
[]
[]
[]
[]
[]
[]
[]
[]
[]
[]
[]
[]
[]
[]
[]
[]
[]
[]
[]
[]
[]
[]
[]
[]
[]
[]
[]
[]
[]
[]
[]
[]
[]
[]
[]
[]
[]
[]
[]
[]
[]
[]
[]
[]
[]
[]
[]
[]
[]
[]
[]
[]
[]
[]
[]
[]
[]
[]
[]
[]
[]
[]
[]
[]
[]
[]
[]
[]
[]
[]
[]
[]
[]
[]
[]
[]
[]
[]
[]
[]
[]
[]
[]
[]
[]
[]
[]
[]
[]
[]
[]
[]
[]
[]
[]
[]
[]
[]
[]
[]
[]
[]
[]
[]
[]
[]
[]
[]
[]
[]
[]
[]
[]
[]
[]
[]
[]
[]
[]
[]
[]
[]
[]
[]
[]
[]
[]
[]
[]
[]
[]
[]
[]
[]
[]
[]
[]
[]
[]
[]
[]
[]
[]
[]
[]
[]
[]
[]
[]
[]
[]
[]
[]
[]
[]
[]
[]
[]
[]
[]
[]
[]
[]
[]
[]
[]
[]
[]
[]
[]
[]
[]
[]
[]
[]
[]
[]
[]
[]
[]
[]
[]
[]
[]
[]
[]
[]
[]
[]
[]
[]
[]
[]
[]
[]
[]
[]
[]
[]
[]
[]
[]
[]
[]
[]
[]
[]
[]
[]
[]
[]
[]
[]
[]
[]
[]
[]
[]
[]
[]
[]
[]
[]
[]
[]
[]
[]
[]
[]
[]
[]
[]
[]
[]
[]
[]
[]
[]
[]
[]
[]
[null,null,null,null,null,null,null,null,null,null,null,null,null,null,null,null,null,null,null,null,null,null,false]

{"sheet":"AGWR II","index":2,"n_rows":456,"n_cols":23,"rows_kept":456,"cut":false,"hidden":false,"merged":[[1,16,6,21],[2,2,3,9],[13,2,13,8],[12,12,12,17],[13,12,13,17],[4,2,4,15],[8,2,8,7],[8,8,8,21],[6,9,6,11],[12,18,12,19],[9,8,9,21],[13,9,13,10],[7,8,7,10],[12,2,12,8],[12,9,12,10],[13,18,13,19],[87,12,87,21],[88,12,88,21],[78,19,78,20],[76,10,76,12],[62,19,62,20],[19,12,19,13],[20,12,20,13],[14,9,14,10],[14,14,14,15],[60,7,60,9],[61,16,61,17],[22,12,22,13],[22,9,22,10],[23,12,23,13],[61,7,61,8],[60,10,60,12],[25,5,25,8],[26,5,27,7],[60,13,60,15],[19,15,19,21],[15,9,15,21],[35,5,36,8],[37,5,39,8],[93,13,93,14],[92,19,92,21],[92,16,92,18],[92,7,92,9],[93,2,93,6],[94,2,94,6],[91,7,91,21],[63,10,63,11],[62,13,62,14],[67,2,67,7],[67,16,67,21],[68,2,68,7],[63,13,63,14],[63,19,63,20],[65,7,65,21],[69,16,69,21],[71,2,71,10],[71,12,71,21],[70,12,70,21],[70,2,70,10],[67,9,67,14],[68,9,68,14],[68,16,68,21],[69,9,69,14],[94,19,94,20],[97,7,97,21],[99,16,99,21],[95,7,95,8],[95,19,95,20],[94,7,94,8],[94,16,94,17],[95,16,95,17],[99,2,99,7],[99,9,99,14],[113,1,113,19],[112,12,112,20],[108,2,108,21],[101,2,101,7],[101,9,101,14],[101,16,101,21],[93,16,93,17],[94,10,94,11],[94,13,94,14],[100,16,100,21],[100,2,100,7],[100,9,100,14],[93,7,93,8],[93,10,93,11],[109,12,109,20],[103,2,103,10],[104,12,104,21],[111,8,111,10],[104,2,104,10],[111,12,111,21],[102,12,102,21],[111,2,111,6],[95,10,95,11],[95,13,95,14],[103,12,103,21],[102,2,102,10],[79,19,79,20],[79,16,79,17],[92,10,92,12],[85,9,85,14],[81,7,81,21],[84,16,84,21],[83,16,83,21],[84,2,84,7],[84,9,84,14],[87,2,87,10],[88,2,88,10],[86,2,86,10],[86,12,86,21],[85,2,85,7],[83,2,83,7],[85,16,85,21],[79,7,79,8],[79,10,79,11],[79,13,79,14],[83,9,83,14],[92,13,92,15],[93,19,93,20],[75,7,75,21],[69,2,69,7],[63,7,63,8],[78,7,78,8],[78,13,78,14],[78,10,78,11],[76,13,76,15],[76,16,76,18],[77,19,77,20],[78,16,78,17],[77,10,77,11],[77,13,77,14],[77,16,77,17],[76,19,76,21],[77,2,77,6],[78,2,78,6],[77,7,77,8],[76,7,76,9],[72,12,72,21],[63,16,63,17],[50,2,50,7],[23,2,23,7],[43,2,44,4],[20,5,20,6],[43,5,43,8],[21,9,21,10],[62,16,62,17],[61,10,61,11],[62,10,62,11],[62,7,62,8],[20,9,20,10],[21,12,21,13],[22,5,22,6],[23,9,23,10],[72,2,72,10],[62,2,62,6],[17,2,18,4],[17,15,18,21],[17,9,18,11],[17,12,18,14],[19,5,19,6],[19,9,19,10],[61,2,61,6],[59,7,59,21],[40,5,41,8],[20,15,20,21],[60,16,60,18],[61,13,61,14],[21,15,21,21],[22,15,22,21],[60,19,60,21],[56,1,56,19],[23,15,23,21],[61,19,61,20],[21,5,21,6]]}
[]
[null,null,null,null,null,null,null,null,null,null,null,null,null,null,null,null,"Einlaufstempel"]
[null,null,"Beiblatt AGWR II"]
[]
[null,null,"Statistische Angaben zum Adress-, Gebäude- und Wohnungs-Register"]
[]
[]
[null,null,"Zum Bauansuchen vom:",null,null,null,null,null,{"$f":"BauansDat","v":"00:00:00"}]
[null,null,{"$f":"IF(OR(Gemeinde=\"9990 Nußdorf-Debant\",Gemeinde=\"9920 Sillian\",Gemeinde=\"9971 Matrei in Osttirol\"),\"Gerichtet an die Marktgemeinde:\",\"Gerichtet an die Gemeinde:\")","v":"Gerichtet an die Gemeinde:"},null,null,null,null,null,{"$f":"Gemeinde","v":"Bitte auswählen ..."}]
[null,null,"Name/Adresse Bauwerber/in:",null,null,null,null,null,{"$f":"CONCATENATE(Bauwerber,\", \",AdrBauwerber)","v":", "}]
[]
[null,"A","Angaben zum Gebäude"]
[null,null,"Gebäudehöhe:",null,null,null,null,null,null,null,null,"m","Brutto-Rauminhalt:",null,null,null,null,null,null,null,"m³"]
[null,null,"Überbaute Grundfläche:",null,null,null,null,null,null,null,null,"m²","Wärmebedarf/Energiekennzahl:",null,null,null,null,null,null,null,"[kWh/m²*a]"]
[null,null,"Anzahl der Geschoße im Gebäude:",null,null,null,null,null,null,null,null,"Oberirdisch",null,null,null,null,"Unterirdisch"]
[null,null,"Eigentümer:",null,null,null,null,null,null,"Bitte auswählen ..."]
[]
[null,null,"Geschoßangabe\n(Gebäudeebene)",null,null,null,null,null,null,"Brutto-Grundfläche pro Geschoß ",null,null,"Durchschnittliche\nGeschoßhöhe",null,null,"Bauweise"]
[]
[null,null,"Dachgeschoß",null,null,null,null,null,null,null,null,"m²",null,null,"m","Bitte auswählen …"]
[null,null,"2. Obergeschoß",null,null,null,null,null,null,null,null,"m²",null,null,"m","Bitte auswählen …"]
[null,null,"1. Obergeschoß",null,null,null,null,null,null,null,null,"m²",null,null,"m","Bitte auswählen …"]
[null,null,"Erdgeschoß",null,null,null,null,null,null,null,null,"m²",null,null,"m","Bitte auswählen …"]
[null,null,"1. Untergeschoß (Keller)",null,null,null,null,null,null,null,null,"m²",null,null,"m","Bitte auswählen …"]
[]
[null,null,"Beheizung",null,null,"Wärmebereitstellung"]
[null,null,null,null,null,"Wärmebereit-\nstellungssystem"]
[]
[]
[]
[]
[]
[]
[]
[]
[null,null,null,null,null,"Betriebsweise"]
[]
[null,null,null,null,null,"Art des Brennstoffs"]
[]
[]
[null,null,null,null,null,"Wärmeabgabe-\nsystem"]
[]
[]
[null,null,"Warmwasser-\naufbereitung",null,null,"Wärmebereitstellung"]
[null,null,null,null,null,"Art der Aufbereitung"]
[]
[]
[]
[]
[]
[null,null,"Belüftung"]
[]
[]
[]
[]
[]
[null,{"$f":"IF(BauansDat<>\"\",CONCATENATE(\"Statistische Angaben (AGWRII) zum Bauansuchen vom \",TEXT(BauansDat,\"TT.MM.JJJJ\"), \" - Bauwerber/in: \", Bauwerber,\", \",AdrBauwerber),CONCATENATE(\"Statistische Angaben (AGWR II)\", \" - Bauwerber/in: \", Bauwerber,\", \",AdrBauwerber))","v":"Statistische Angaben (AGWR II) - Bauwerber/in: , "},null,null,null,null,null,null,null,null,null,null,null,null,null,null,null,null,null,null,null,"Seite 1"]
[null,"B","Angaben zu den Nutzungseinheiten"]
[null,null,"Nutzungseinheit Nr. 1 - verteilt sich über",null,null,null,null,null,null,null,1,"Geschoß(e)"]
[null,null,"Nutzungsart:",null,null,null,null,"Kellerfläche"]
[null,null,"Geschoßangabe",null,null,null,null,"Dachgeschoß",null,null,"2. Obergeschoß",null,null,"1. Obergeschoß",null,null,"Erdgeschoß",null,null,"Keller"]
[null,null,"Nutzfläche",null,null,null,null,null,null,"m²",null,null,"m²",null,null,"m²",null,null,"m²",null,null,"m²"]
[null,null,"Raumhöhe",null,null,null,null,null,null,"m",null,null,"m",null,null,"m",null,null,"m",null,null,"m"]
[null,null,"Anzahl Räume ab 4 m²"]
[null,null,"In der Nutzungseinheit befinden sich:"]
[null,null,"Rechtsverhältnis:",null,null,null,null,"Bitte auswählen ..."]
[null,null,{"$f":"Vorgaben!$S$2","v":"Nachfolgende Daten sind nur dann bekannt zu geben, wenn sie vom Gebäude lt. Pt. A abweichen:"}]
[null,null,"Wärmebereitstellungssystem",null,null,null,null,null,null,"Art des Brennstoffes",null,null,null,null,null,null,"Wärmeabgabesystem"]
[null,null,"Bitte auswählen ...",null,null,null,null,null,null,"Bitte auswählen ...",null,null,null,null,null,null,"Bitte auswählen ..."]
[]
[null,null,"Art der Warmwasseraufbereitung",null,null,null,null,null,null,null,null,null,"Belüftungsart"]
[null,null,"Bitte auswählen ...",null,null,null,null,null,null,null,null,null,"Bitte auswählen ..."]
[]
[]
[null,null,"Nutzungseinheit Nr. 2 - verteilt sich über",null,null,null,null,null,null,null,null,"Geschoß(e)"]
[null,null,"Nutzungsart:",null,null,null,null,"Bitte auswählen ..."]
[null,null,"Geschoßangabe",null,null,null,null,"Dachgeschoß",null,null,"2. Obergeschoß",null,null,"1. Obergeschoß",null,null,"Erdgeschoß",null,null,"Keller"]
[null,null,"Nutzfläche",null,null,null,null,null,null,"m²",null,null,"m²",null,null,"m²",null,null,"m²",null,null,"m²"]
[null,null,"Raumhöhe",null,null,null,null,null,null,"m",null,null,"m",null,null,"m",null,null,"m",null,null,"m"]
[null,null,"Anzahl Räume ab 4 m²"]
[null,null,"In der Nutzungseinheit befinden sich:"]
[null,null,"Rechtsverhältnis:",null,null,null,null,"Bitte auswählen ..."]
[null,null,{"$f":"Vorgaben!$S$2","v":"Nachfolgende Daten sind nur dann bekannt zu geben, wenn sie vom Gebäude lt. Pt. A abweichen:"}]
[null,null,"Wärmebereitstellungssystem",null,null,null,null,null,null,"Art des Brennstoffes",null,null,null,null,null,null,"Wärmeabgabesystem"]
[null,null,"Bitte auswählen ...",null,null,null,null,null,null,"Bitte auswählen ...",null,null,null,null,null,null,"Bitte auswählen ..."]
[]
[null,null,"Art der Warmwasseraufbereitung",null,null,null,null,null,null,null,null,null,"Belüftungsart"]
[null,null,"Bitte auswählen ...",null,null,null,null,null,null,null,null,null,"Bitte auswählen ..."]
[]
[]
[null,null,"Nutzungseinheit Nr. 3 - verteilt sich über",null,null,null,null,null,null,null,null,"Geschoß(e)"]
[null,null,"Nutzungsart:",null,null,null,null,"Bitte auswählen ..."]
[null,null,"Geschoßangabe",null,null,null,null,"Dachgeschoß",null,null,"2. Obergeschoß",null,null,"1. Obergeschoß",null,null,"Erdgeschoß",null,null,"Keller"]
[null,null,"Nutzfläche",null,null,null,null,null,null,"m²",null,null,"m²",null,null,"m²",null,null,"m²",null,null,"m²"]
[null,null,"Raumhöhe",null,null,null,null,null,null,"m",null,null,"m",null,null,"m",null,null,"m",null,null,"m"]
[null,null,"Anzahl Räume ab 4 m²"]
[null,null,"In der Nutzungseinheit befinden sich:"]
[null,null,"Rechtsverhältnis:",null,null,null,null,"Bitte auswählen ..."]
[null,null,{"$f":"Vorgaben!$S$2","v":"Nachfolgende Daten sind nur dann bekannt zu geben, wenn sie vom Gebäude lt. Pt. A abweichen:"}]
[null,null,"Wärmebereitstellungssystem",null,null,null,null,null,null,"Art des Brennstoffes",null,null,null,null,null,null,"Wärmeabgabesystem"]
[null,null,"Bitte auswählen ...",null,null,null,null,null,null,"Bitte auswählen ...",null,null,null,null,null,null,"Bitte auswählen ..."]
[]
[null,null,"Art der Warmwasseraufbereitung",null,null,null,null,null,null,null,null,null,"Belüftungsart"]
[null,null,"Bitte auswählen ...",null,null,null,null,null,null,null,null,null,"Bitte auswählen ..."]
[]
[]
[null,null,"Für weitere Nutzungseinheiten (NE) bitte Beiblatt/blätter verwenden (Tabellenblatt \"Beiblätter NE\")!"]
[]
[null,null,"Die Richtigkeit und Vollständigkeit der gemachten Angaben wird bestätigt:"]
[null,null,null,null,null,null,null,null,null,null,null,null,"Unterschrift Bauwerber/in:"]
[]
[null,null,{"$f":"BauansOrt","v":0},null,null,null,null,null,{"$f":"BauansDat","v":"00:00:00"}]
[null,null,"Ort",null,null,null,null,null,"Datum",null,null,null,{"$f":"CONCATENATE(\"(\",Bauwerber,\")\")","v":"()"}]
[null,{"$f":"IF(BauansDat<>\"\",CONCATENATE(\"Statistische Angaben (AGWRII) zum Bauansuchen vom \",TEXT(BauansDat,\"TT.MM.JJJJ\"), \" - Bauwerber/in: \", Bauwerber,\", \",AdrBauwerber),CONCATENATE(\"Statistische Angaben (AGWR II)\", \" - Bauwerber/in: \", Bauwerber,\", \",AdrBauwerber))","v":"Statistische Angaben (AGWR II) - Bauwerber/in: , "},null,null,null,null,null,null,null,null,null,null,null,null,null,null,null,null,null,null,null,"Seite 2"]
[]
[]
[]
[]
[]
[]
[]
[]
[]
[]
[]
[]
[]
[]
[]
[]
[]
[]
[]
[]
[]
[]
[]
[]
[]
[]
[]
[]
[]
[]
[]
[]
[]
[]
[]
[]
[]
[]
[]
[]
[]
[]
[]
[]
[]
[]
[]
[]
[]
[]
[]
[]
[]
[]
[]
[]
[]
[]
[]
[]
[]
[]
[]
[]
[]
[]
[]
[]
[]
[]
[]
[]
[]
[]
[]
[]
[]
[]
[]
[]
[]
[]
[]
[]
[]
[]
[]
[]
[]
[]
[]
[]
[]
[]
[]
[]
[]
[]
[]
[]
[]
[]
[]
[]
[]
[]
[]
[]
[]
[]
[]
[]
[]
[]
[]
[]
[]
[]
[]
[]
[]
[]
[]
[]
[]
[]
[]
[]
[]
[]
[]
[]
[]
[]
[]
[]
[]
[]
[]
[]
[]
[]
[]
[]
[]
[]
[]
[]
[]
[]
[]
[]
[]
[]
[]
[]
[]
[]
[]
[]
[]
[]
[]
[]
[]
[]
[]
[]
[]
[]
[]
[]
[]
[]
[]
[]
[]
[]
[]
[]
[]
[]
[]
[]
[]
[]
[]
[]
[]
[]
[]
[]
[]
[]
[]
[]
[]
[]
[]
[]
[]
[]
[]
[]
[]
[]
[]
[]
[]
[]
[]
[]
[]
[]
[]
[]
[]
[]
[]
[]
[]
[]
[]
[]
[]
[]
[]
[]
[]
[]
[]
[]
[]
[]
[]
[]
[]
[]
[]
[]
[]
[]
[]
[]
[]
[]
[]
[]
[]
[]
[]
[]
[]
[]
[]
[]
[]
[]
[]
[]
[]
[]
[]
[]
[]
[]
[]
[]
[]
[]
[]
[]
[]
[]
[]
[]
[]
[]
[]
[]
[]
[]
[]
[]
[]
[]
[]
[]
[]
[]
[]
[]
[]
[]
[]
[]
[]
[]
[]
[]
[]
[]
[]
[]
[]
[]
[]
[]
[]
[]
[]
[]
[]
[]
[]
[]
[]
[]
[]
[]
[]
[]
[]
[]
[]
[]
[]
[]
[]
[]
[]
[]
[]
[]
[]
[]
[]
[]
[]
[]
[]
[null,null,null,null,null,null,null,null,null,null,null,null,null,null,null,null,null,null,null,null,null,null,false]

{"sheet":"Beiblätter NE","index":3,"n_rows":539,"n_cols":22,"rows_kept":539,"cut":false,"hidden":false,"merged":[[537,1,537,21],[538,1,538,21],[429,1,429,21],[430,1,430,21],[483,1,483,21],[484,1,484,21],[517,12,517,21],[518,12,518,21],[509,19,509,20],[511,7,511,21],[371,12,371,21],[514,9,514,14],[491,19,491,20],[514,16,514,21],[515,16,515,21],[512,2,512,21],[508,7,508,8],[509,13,509,14],[534,2,534,10],[531,9,531,14],[525,13,525,14],[525,16,525,17],[532,2,532,10],[533,2,533,10],[532,12,532,21],[534,12,534,21],[533,12,533,21],[525,19,525,20],[531,16,531,21],[530,16,530,21],[523,7,523,8],[523,10,523,11],[260,2,260,7],[260,9,260,14],[260,16,260,21],[261,2,261,7],[261,9,261,14],[261,16,261,21],[375,1,375,21],[376,1,376,21],[369,16,369,21],[369,9,369,14],[363,16,363,17],[370,2,370,10],[371,2,371,10],[369,2,369,7],[370,12,370,21],[363,19,363,20],[362,2,362,6],[366,2,366,21],[368,16,368,21],[361,19,361,20],[367,2,367,7],[367,9,367,14],[362,7,362,8],[362,16,362,17],[362,19,362,20],[361,7,361,8],[361,10,361,11],[361,13,361,14],[363,13,363,14],[362,10,362,11],[362,13,362,14],[363,10,363,11],[134,2,134,21],[501,2,501,10],[502,2,502,10],[501,12,501,21],[514,2,514,7],[515,2,515,7],[513,2,513,7],[513,9,513,14],[508,2,508,6],[523,16,523,17],[509,16,509,17],[16,12,16,21],[31,12,31,21],[32,12,32,21],[47,12,47,21],[36,13,36,15],[36,16,36,18],[42,2,42,21],[28,2,28,7],[124,12,124,21],[124,2,124,10],[113,19,113,20],[114,7,114,8],[114,10,114,11],[122,2,122,10],[122,12,122,21],[123,2,123,10],[120,16,120,21],[120,2,120,7],[77,10,77,11],[77,13,77,14],[84,2,84,10],[524,7,524,8],[531,2,531,7],[524,16,524,17],[527,7,527,21],[529,16,529,21],[525,7,525,8],[523,13,523,14],[506,13,506,15],[507,2,507,6],[502,12,502,21],[507,16,507,17],[505,7,505,21],[506,7,506,9],[506,10,506,12],[507,7,507,8],[507,10,507,11],[506,16,506,18],[506,19,506,21],[507,19,507,20],[523,19,523,20],[530,2,530,7],[530,9,530,14],[529,2,529,7],[529,9,529,14],[525,10,525,11],[528,2,528,21],[522,16,522,18],[522,19,522,21],[517,2,517,10],[509,10,509,11],[515,9,515,14],[507,13,507,14],[516,2,516,10],[509,7,509,8],[513,16,513,21],[516,12,516,21],[490,19,490,21],[490,7,490,9],[478,12,478,21],[479,12,479,21],[480,12,480,21],[490,10,490,12],[490,13,490,15],[490,16,490,18],[486,19,486,21],[492,19,492,20],[491,7,491,8],[491,10,491,11],[491,13,491,14],[491,16,491,17],[492,7,492,8],[492,10,492,11],[492,13,492,14],[492,16,492,17],[471,7,471,8],[471,10,471,11],[471,13,471,14],[471,16,471,17],[475,2,475,7],[474,2,474,21],[475,9,475,14],[476,2,476,7],[476,9,476,14],[476,16,476,21],[470,16,470,17],[470,19,470,20],[477,2,477,7],[477,9,477,14],[477,16,477,21],[473,7,473,21],[475,16,475,21],[470,7,470,8],[460,16,460,21],[461,2,461,7],[461,9,461,14],[461,16,461,21],[460,2,460,7],[460,9,460,14],[468,19,468,21],[469,19,469,20],[462,12,462,21],[463,12,463,21],[464,12,464,21],[467,7,467,21],[462,2,462,10],[463,2,463,10],[464,2,464,10],[469,2,469,6],[469,7,469,8],[469,10,469,11],[469,13,469,14],[469,16,469,17],[468,7,468,9],[468,10,468,12],[468,13,468,15],[468,16,468,18],[453,19,453,20],[454,7,454,8],[454,10,454,11],[454,13,454,14],[454,16,454,17],[454,19,454,20],[453,7,453,8],[453,10,453,11],[453,13,453,14],[453,16,453,17],[455,19,455,20],[457,7,457,21],[459,16,459,21],[455,7,455,8],[455,10,455,11],[455,13,455,14],[455,16,455,17],[458,2,458,21],[459,2,459,7],[459,9,459,14],[453,2,453,6],[454,2,454,6],[439,16,439,17],[439,19,439,20],[442,2,442,21],[444,2,444,7],[444,9,444,14],[444,16,444,21],[445,2,445,7],[445,9,445,14],[445,16,445,21],[446,2,446,10],[447,2,447,10],[448,2,448,10],[446,12,446,21],[447,12,447,21],[448,12,448,21],[451,7,451,21],[452,7,452,9],[452,10,452,12],[452,13,452,15],[452,16,452,18],[452,19,452,21],[441,7,441,21],[443,16,443,21],[439,7,439,8],[439,10,439,11],[439,13,439,14],[443,2,443,7],[443,9,443,14],[422,2,422,7],[422,9,422,14],[422,16,422,21],[423,2,423,7],[423,9,423,14],[423,16,423,21],[432,19,432,21],[424,2,424,10],[425,2,425,10],[426,2,426,10],[424,12,424,21],[425,12,425,21],[426,12,426,21],[438,16,438,17],[435,7,435,21],[436,7,436,9],[436,10,436,12],[436,13,436,15],[436,16,436,18],[436,19,436,21],[437,10,437,11],[437,13,437,14],[437,2,437,6],[438,2,438,6],[437,19,437,20],[438,19,438,20],[437,7,437,8],[416,19,416,20],[415,7,415,8],[415,10,415,11],[415,13,415,14],[415,16,415,17],[410,2,410,10],[414,7,414,9],[414,10,414,12],[414,13,414,15],[414,16,414,18],[419,7,419,21],[421,16,421,21],[417,7,417,8],[417,10,417,11],[417,13,417,14],[417,16,417,17],[417,19,417,20],[421,2,421,7],[421,9,421,14],[420,2,420,21],[415,19,415,20],[416,7,416,8],[416,10,416,11],[416,13,416,14],[416,16,416,17],[415,2,415,6],[416,2,416,6],[401,13,401,14],[401,16,401,17],[404,2,404,21],[399,19,399,20],[400,7,400,8],[400,10,400,11],[400,13,400,14],[400,16,400,17],[400,19,400,20],[399,7,399,8],[414,19,414,21],[406,16,406,21],[407,2,407,7],[407,9,407,14],[407,16,407,21],[401,19,401,20],[403,7,403,21],[405,16,405,21],[401,7,401,8],[401,10,401,11],[408,12,408,21],[409,12,409,21],[410,12,410,21],[408,2,408,10],[409,2,409,10],[413,7,413,21],[400,2,400,6],[405,2,405,7],[405,9,405,14],[406,2,406,7],[406,9,406,14],[390,2,390,7],[390,9,390,14],[390,16,390,21],[391,2,391,7],[391,9,391,14],[391,16,391,21],[392,2,392,10],[393,2,393,10],[394,2,394,10],[392,12,392,21],[393,12,393,21],[394,12,394,21],[399,10,399,11],[399,13,399,14],[399,16,399,17],[397,7,397,21],[398,7,398,9],[398,10,398,12],[398,13,398,15],[398,16,398,18],[398,19,398,21],[399,2,399,6],[382,16,382,18],[381,7,381,21],[372,12,372,21],[372,2,372,10],[382,19,382,21],[378,19,378,21],[383,19,383,20],[384,7,384,8],[384,10,384,11],[384,13,384,14],[384,16,384,17],[384,19,384,20],[383,16,383,17],[383,10,383,11],[383,13,383,14],[389,16,389,21],[385,7,385,8],[385,10,385,11],[385,13,385,14],[385,16,385,17],[388,2,388,21],[385,19,385,20],[387,7,387,21],[389,2,389,7],[389,9,389,14],[383,2,383,6],[384,2,384,6],[382,7,382,9],[382,10,382,12],[382,13,382,15],[383,7,383,8],[365,7,365,21],[367,16,367,21],[363,7,363,8],[368,2,368,7],[368,9,368,14],[343,7,343,21],[344,7,344,9],[344,10,344,12],[344,13,344,15],[344,16,344,18],[352,2,352,7],[352,9,352,14],[352,16,352,21],[354,12,354,21],[354,2,354,10],[345,10,345,11],[345,13,345,14],[353,16,353,21],[347,19,347,20],[349,7,349,21],[355,2,355,10],[356,2,356,10],[353,2,353,7],[353,9,353,14],[355,12,355,21],[356,12,356,21],[361,16,361,17],[345,2,345,6],[346,2,346,6],[351,2,351,7],[351,9,351,14],[350,2,350,21],[321,1,321,21],[322,1,322,21],[318,12,318,21],[330,16,330,17],[330,19,330,20],[329,7,329,8],[329,10,329,11],[329,13,329,14],[329,2,329,6],[330,2,330,6],[339,2,339,10],[329,16,329,17],[331,10,331,11],[331,13,331,14],[331,16,331,17],[328,19,328,21],[329,19,329,20],[330,7,330,8],[330,10,330,11],[330,13,330,14],[336,2,336,7],[336,9,336,14],[338,2,338,10],[336,16,336,21],[337,2,337,7],[337,9,337,14],[339,12,339,21],[338,12,338,21],[334,2,334,21],[337,16,337,21],[331,7,331,8],[305,7,305,21],[306,7,306,9],[306,10,306,12],[306,13,306,15],[306,16,306,18],[306,19,306,21],[309,16,309,17],[312,2,312,21],[307,16,307,17],[308,10,308,11],[308,13,308,14],[308,16,308,17],[307,2,307,6],[308,2,308,6],[316,2,316,10],[317,2,317,10],[318,2,318,10],[308,19,308,20],[309,19,309,20],[311,7,311,21],[313,16,313,21],[309,7,309,8],[309,10,309,11],[309,13,309,14],[314,2,314,7],[314,9,314,14],[314,16,314,21],[315,2,315,7],[315,9,315,14],[315,16,315,21],[316,12,316,21],[317,12,317,21],[293,19,293,20],[295,7,295,21],[297,16,297,21],[293,7,293,8],[293,10,293,11],[293,13,293,14],[293,16,293,17],[296,2,296,21],[298,2,298,7],[298,9,298,14],[298,16,298,21],[299,2,299,7],[299,9,299,14],[299,16,299,21],[300,2,300,10],[301,2,301,10],[302,2,302,10],[300,12,300,21],[301,12,301,21],[302,12,302,21],[290,13,290,15],[290,16,290,18],[290,19,290,21],[286,2,286,10],[284,12,284,21],[285,12,285,21],[286,12,286,21],[284,2,284,10],[285,2,285,10],[291,19,291,20],[292,7,292,8],[292,10,292,11],[292,13,292,14],[292,16,292,17],[292,19,292,20],[291,7,291,8],[291,10,291,11],[291,13,291,14],[291,16,291,17],[270,19,270,21],[262,2,262,10],[263,2,263,10],[264,2,264,10],[262,12,262,21],[263,12,263,21],[264,12,264,21],[273,7,273,21],[274,7,274,9],[274,10,274,12],[274,13,274,15],[274,16,274,18],[274,19,274,21],[275,19,275,20],[276,7,276,8],[276,10,276,11],[276,13,276,14],[276,16,276,17],[276,19,276,20],[275,7,275,8],[275,10,275,11],[275,13,275,14],[275,16,275,17],[267,1,267,21],[268,1,268,21],[253,19,253,20],[254,7,254,8],[254,10,254,11],[254,13,254,14],[254,16,254,17],[254,19,254,20],[253,7,253,8],[253,10,253,11],[253,13,253,14],[253,16,253,17],[255,19,255,20],[257,7,257,21],[259,16,259,21],[255,7,255,8],[255,10,255,11],[255,13,255,14],[255,16,255,17],[258,2,258,21],[253,2,253,6],[254,2,254,6],[259,2,259,7],[259,9,259,14],[239,19,239,20],[241,7,241,21],[243,16,243,21],[239,7,239,8],[239,10,239,11],[239,13,239,14],[239,16,239,17],[242,2,242,21],[244,16,244,21],[245,2,245,7],[245,9,245,14],[245,16,245,21],[244,2,244,7],[244,9,244,14],[252,10,252,12],[252,13,252,15],[252,16,252,18],[252,19,252,21],[248,2,248,10],[246,12,246,21],[247,12,247,21],[248,12,248,21],[246,2,246,10],[247,2,247,10],[243,2,243,7],[243,9,243,14],[251,7,251,21],[252,7,252,9],[231,2,231,10],[232,2,232,10],[230,12,230,21],[231,12,231,21],[232,12,232,21],[235,7,235,21],[236,7,236,9],[236,10,236,12],[236,13,236,15],[236,16,236,18],[236,19,236,21],[237,19,237,20],[238,7,238,8],[238,10,238,11],[238,13,238,14],[238,16,238,17],[238,19,238,20],[237,7,237,8],[237,10,237,11],[237,13,237,14],[237,16,237,17],[237,2,237,6],[238,2,238,6],[227,16,227,21],[223,7,223,8],[223,10,223,11],[223,13,223,14],[223,16,223,17],[226,2,226,21],[227,2,227,7],[227,9,227,14],[223,19,223,20],[225,7,225,21],[228,2,228,7],[228,9,228,14],[228,16,228,21],[229,2,229,7],[229,9,229,14],[229,16,229,21],[230,2,230,10],[222,19,222,20],[221,7,221,8],[221,10,221,11],[219,7,219,21],[220,7,220,9],[208,12,208,21],[209,12,209,21],[210,12,210,21],[221,13,221,14],[221,16,221,17],[207,2,207,7],[207,9,207,14],[207,16,207,21],[208,2,208,10],[209,2,209,10],[221,2,221,6],[216,19,216,21],[221,19,221,20],[222,7,222,8],[222,10,222,11],[222,13,222,14],[222,16,222,17],[220,10,220,12],[220,13,220,15],[220,16,220,18],[220,19,220,21],[222,2,222,6],[213,1,213,21],[214,1,214,21],[192,2,192,10],[193,2,193,10],[194,2,194,10],[192,12,192,21],[194,12,194,21],[193,12,193,21],[199,10,199,11],[199,16,199,17],[197,7,197,21],[198,7,198,9],[198,10,198,12],[198,13,198,15],[198,16,198,18],[198,19,198,21],[199,19,199,20],[199,7,199,8],[199,2,199,6],[185,19,185,20],[187,7,187,21],[189,16,189,21],[185,7,185,8],[185,10,185,11],[185,13,185,14],[185,16,185,17],[188,2,188,21],[184,2,184,6],[189,2,189,7],[189,9,189,14],[190,2,190,7],[190,9,190,14],[190,16,190,21],[191,2,191,7],[191,9,191,14],[191,16,191,21],[178,2,178,10],[176,12,176,21],[181,7,181,21],[182,7,182,9],[182,10,182,12],[182,13,182,15],[182,16,182,18],[182,19,182,21],[177,12,177,21],[178,12,178,21],[183,19,183,20],[183,2,183,6],[176,2,176,10],[177,2,177,10],[184,7,184,8],[184,10,184,11],[184,13,184,14],[184,16,184,17],[184,19,184,20],[183,7,183,8],[183,10,183,11],[183,13,183,14],[183,16,183,17],[169,19,169,20],[171,7,171,21],[173,16,173,21],[169,7,169,8],[169,10,169,11],[169,13,169,14],[169,16,169,17],[172,2,172,21],[168,2,168,6],[173,2,173,7],[173,9,173,14],[174,16,174,21],[175,2,175,7],[175,9,175,14],[175,16,175,21],[174,2,174,7],[174,9,174,14],[160,1,160,21],[159,1,159,21],[165,7,165,21],[166,7,166,9],[166,10,166,12],[166,13,166,15],[166,16,166,18],[166,19,166,21],[167,19,167,20],[167,2,167,6],[153,2,153,7],[153,9,153,14],[168,7,168,8],[168,10,168,11],[168,13,168,14],[168,16,168,17],[168,19,168,20],[167,7,167,8],[167,10,167,11],[167,13,167,14],[167,16,167,17],[138,2,138,10],[139,2,139,10],[140,2,140,10],[138,12,138,21],[139,12,139,21],[140,12,140,21],[137,2,137,7],[137,9,137,14],[143,7,143,21],[144,19,144,21],[145,7,145,8],[145,10,145,11],[145,13,145,14],[145,16,145,17],[145,19,145,20],[144,10,144,12],[144,13,144,15],[144,16,144,18],[145,2,145,6],[133,7,133,21],[144,7,144,9],[135,16,135,21],[136,2,136,7],[113,16,113,17],[136,16,136,21],[128,16,128,18],[129,2,129,6],[130,2,130,6],[135,2,135,7],[135,9,135,14],[136,9,136,14],[128,19,128,21],[129,7,129,8],[129,10,129,11],[129,13,129,14],[129,16,129,17],[129,19,129,20],[128,7,128,9],[128,10,128,12],[128,13,128,15],[130,19,130,20],[131,7,131,8],[131,10,131,11],[131,13,131,14],[131,16,131,17],[131,19,131,20],[130,7,130,8],[130,10,130,11],[130,13,130,14],[130,16,130,17],[137,16,137,21],[111,7,111,21],[112,19,112,21],[112,10,112,12],[112,13,112,15],[100,2,100,10],[127,7,127,21],[97,16,97,21],[98,2,98,7],[102,2,102,10],[114,19,114,20],[115,19,115,20],[117,7,117,21],[115,16,115,17],[112,7,112,9],[120,9,120,14],[121,16,121,21],[121,2,121,7],[121,9,121,14],[119,16,119,21],[118,2,118,21],[114,13,114,14],[114,16,114,17],[123,12,123,21],[81,16,81,21],[77,19,77,20],[85,12,85,21],[82,16,82,21],[83,2,83,7],[76,19,76,20],[77,7,77,8],[86,2,86,10],[84,12,84,21],[86,12,86,21],[91,16,91,17],[89,7,89,21],[90,7,90,9],[90,10,90,12],[90,13,90,15],[91,2,91,6],[90,16,90,18],[90,19,90,21],[91,19,91,20],[82,9,82,14],[85,2,85,10],[82,2,82,7],[83,9,83,14],[83,16,83,21],[76,2,76,6],[81,2,81,7],[81,9,81,14],[80,2,80,21],[77,16,77,17],[70,12,70,21],[69,12,69,21],[75,7,75,8],[75,10,75,11],[75,13,75,14],[73,7,73,21],[74,7,74,9],[74,10,74,12],[74,13,74,15],[74,16,74,18],[74,19,74,21],[75,2,75,6],[75,16,75,17],[75,19,75,20],[76,13,76,14],[76,16,76,17],[79,7,79,21],[76,7,76,8],[76,10,76,11],[3,7,3,21],[4,7,4,9],[4,10,4,12],[6,19,6,20],[6,7,6,8],[6,10,6,11],[6,13,6,14],[6,16,6,17],[5,7,5,8],[5,10,5,11],[21,19,21,20],[22,7,22,8],[22,10,22,11],[22,13,22,14],[22,16,22,17],[20,10,20,12],[20,13,20,15],[20,16,20,18],[21,13,21,14],[21,16,21,17],[5,13,5,14],[7,16,7,17],[14,2,14,10],[12,2,12,7],[12,9,12,14],[5,2,5,6],[6,2,6,6],[11,2,11,7],[11,9,11,14],[10,2,10,21],[21,2,21,6],[7,10,7,11],[4,19,4,21],[5,16,5,17],[5,19,5,20],[4,13,4,15],[4,16,4,18],[39,16,39,17],[25,7,25,21],[23,7,23,8],[23,16,23,17],[7,7,7,8],[7,19,7,20],[11,16,11,21],[21,7,21,8],[21,10,21,11],[36,7,36,9],[36,10,36,12],[30,2,30,10],[28,9,28,14],[37,19,37,20],[37,10,37,11],[31,2,31,10],[35,7,35,21],[37,13,37,14],[37,16,37,17],[28,16,28,21],[27,16,27,21],[30,12,30,21],[29,2,29,7],[29,9,29,14],[29,16,29,21],[27,2,27,7],[27,9,27,14],[9,7,9,21],[7,13,7,14],[12,16,12,21],[13,2,13,7],[13,9,13,14],[13,16,13,21],[26,2,26,21],[23,19,23,20],[22,19,22,20],[46,2,46,10],[47,2,47,10],[57,7,57,21],[46,12,46,21],[52,1,52,21],[54,19,54,21],[48,12,48,21],[15,2,15,10],[16,2,16,10],[15,12,15,21],[14,12,14,21],[22,2,22,6],[23,10,23,11],[23,13,23,14],[20,7,20,9],[19,7,19,21],[20,19,20,21],[37,7,37,8],[37,2,37,6],[32,2,32,10],[36,19,36,21],[45,2,45,7],[45,9,45,14],[39,19,39,20],[39,13,39,14],[58,19,58,21],[51,1,51,21],[59,7,59,8],[59,10,59,11],[59,13,59,14],[59,16,59,17],[61,19,61,20],[63,7,63,21],[59,19,59,20],[65,16,65,21],[61,7,61,8],[38,2,38,6],[43,2,43,7],[43,9,43,14],[39,10,39,11],[38,10,38,11],[38,13,38,14],[39,7,39,8],[38,7,38,8],[60,16,60,17],[58,10,58,12],[58,13,58,15],[58,16,58,18],[60,19,60,20],[48,2,48,10],[60,7,60,8],[58,7,58,9]],"merged_total":1231,"flags":["merged_cut"]}
[null,null,{"$f":"Vorgaben!$S$4","v":"AGWR II - Statistische Angaben zu weiteren Nutzungseinheiten"},null,null,null,null,null,null,null,null,null,null,null,null,null,null,null,null,1]
[]
[null,null,"Nutzungseinheit Nr. 4 - verteilt sich über",null,null,null,null,null,null,null,null,"Geschoß(e)"]
[null,null,"Nutzungsart:",null,null,null,null,"Bitte auswählen ..."]
[null,null,"Geschoßangabe",null,null,null,null,"Dachgeschoß",null,null,"2. Obergeschoß",null,null,"1. Obergeschoß",null,null,"Erdgeschoß",null,null,"Keller"]
[null,null,"Nutzfläche",null,null,null,null,null,null,"m²",null,null,"m²",null,null,"m²",null,null,"m²",null,null,"m²"]
[null,null,"Raumhöhe",null,null,null,null,null,null,"m",null,null,"m",null,null,"m",null,null,"m",null,null,"m"]
[null,null,"Anzahl Räume ab 4 m²"]
[null,null,"In der Nutzungseinheit befinden sich:"]
[null,null,"Rechtsverhältnis:",null,null,null,null,"Bitte auswählen ..."]
[null,null,{"$f":"Vorgaben!$S$3","v":"Nur auszufüllen, wenn abweichend vom Gebäude lt. Pt. A des Tabellenblatte \"AGWR II\":"}]
[null,null,"Wärmebereitstellungssystem",null,null,null,null,null,null,"Art des Brennstoffes",null,null,null,null,null,null,"Wärmeabgabesystem"]
[null,null,"Bitte auswählen ...",null,null,null,null,null,null,"Bitte auswählen ...",null,null,null,null,null,null,"Bitte auswählen ..."]
[]
[null,null,"Art der Warmwasseraufbereitung",null,null,null,null,null,null,null,null,null,"Belüftungsart"]
[null,null,"Bitte auswählen ...",null,null,null,null,null,null,null,null,null,"Bitte auswählen ..."]
[]
[]
[null,null,"Nutzungseinheit Nr. 5 - verteilt sich über",null,null,null,null,null,null,null,null,"Geschoß(e)"]
[null,null,"Nutzungsart:",null,null,null,null,"Bitte auswählen ..."]
[null,null,"Geschoßangabe",null,null,null,null,"Dachgeschoß",null,null,"2. Obergeschoß",null,null,"1. Obergeschoß",null,null,"Erdgeschoß",null,null,"Keller"]
[null,null,"Nutzfläche",null,null,null,null,null,null,"m²",null,null,"m²",null,null,"m²",null,null,"m²",null,null,"m²"]
[null,null,"Raumhöhe",null,null,null,null,null,null,"m",null,null,"m",null,null,"m",null,null,"m",null,null,"m"]
[null,null,"Anzahl Räume ab 4 m²"]
[null,null,"In der Nutzungseinheit befinden sich:"]
[null,null,"Rechtsverhältnis:",null,null,null,null,"Bitte auswählen ..."]
[null,null,{"$f":"Vorgaben!$S$3","v":"Nur auszufüllen, wenn abweichend vom Gebäude lt. Pt. A des Tabellenblatte \"AGWR II\":"}]
[null,null,"Wärmebereitstellungssystem",null,null,null,null,null,null,"Art des Brennstoffes",null,null,null,null,null,null,"Wärmeabgabesystem"]
[null,null,"Bitte auswählen ...",null,null,null,null,null,null,"Bitte auswählen ...",null,null,null,null,null,null,"Bitte auswählen ..."]
[]
[null,null,"Art der Warmwasseraufbereitung",null,null,null,null,null,null,null,null,null,"Belüftungsart"]
[null,null,"Bitte auswählen ...",null,null,null,null,null,null,null,null,null,"Bitte auswählen ..."]
[]
[]
[null,null,"Nutzungseinheit Nr. 6 - verteilt sich über",null,null,null,null,null,null,null,null,"Geschoß(e)"]
[null,null,"Nutzungsart:",null,null,null,null,"Bitte auswählen ..."]
[null,null,"Geschoßangabe",null,null,null,null,"Dachgeschoß",null,null,"2. Obergeschoß",null,null,"1. Obergeschoß",null,null,"Erdgeschoß",null,null,"Keller"]
[null,null,"Nutzfläche",null,null,null,null,null,null,"m²",null,null,"m²",null,null,"m²",null,null,"m²",null,null,"m²"]
[null,null,"Raumhöhe",null,null,null,null,null,null,"m",null,null,"m",null,null,"m",null,null,"m",null,null,"m"]
[null,null,"Anzahl Räume ab 4 m²"]
[null,null,"In der Nutzungseinheit befinden sich:"]
[null,null,"Rechtsverhältnis:",null,null,null,null,"Bitte auswählen ..."]
[null,null,{"$f":"Vorgaben!$S$3","v":"Nur auszufüllen, wenn abweichend vom Gebäude lt. Pt. A des Tabellenblatte \"AGWR II\":"}]
[null,null,"Wärmebereitstellungssystem",null,null,null,null,null,null,"Art des Brennstoffes",null,null,null,null,null,null,"Wärmeabgabesystem"]
[null,null,"Bitte auswählen ...",null,null,null,null,null,null,"Bitte auswählen ...",null,null,null,null,null,null,"Bitte auswählen ..."]
[]
[null,null,"Art der Warmwasseraufbereitung",null,null,null,null,null,null,null,null,null,"Belüftungsart"]
[null,null,"Bitte auswählen ...",null,null,null,null,null,null,null,null,null,"Bitte auswählen ..."]
[]
[]
[]
[null,{"$f":"$C$1","v":"AGWR II - Statistische Angaben zu weiteren Nutzungseinheiten"}]
[null,{"$f":"IF(BauansDat<>\"\",CONCATENATE(\"betreffend Bauansuchen vom \",TEXT(BauansDat,\"TT.MM.JJJJ\"), \" - Bauwerber/in: \", Bauwerber,\", \",AdrBauwerber),CONCATENATE(\"Statistische Angaben (AGWR II)\", \" - Bauwerber/in: \", Bauwerber,\", \",AdrBauwerber))","v":"Statistische Angaben (AGWR II) - Bauwerber/in: , "}]
[]
[null,null,{"$f":"Vorgaben!$S$4","v":"AGWR II - Statistische Angaben zu weiteren Nutzungseinheiten"},null,null,null,null,null,null,null,null,null,null,null,null,null,null,null,null,2]
[]
[null,null,"Nutzungseinheit Nr. 7 - verteilt sich über",null,null,null,null,null,null,null,null,"Geschoß(e)"]
[null,null,"Nutzungsart:",null,null,null,null,"Bitte auswählen ..."]
[null,null,"Geschoßangabe",null,null,null,null,"Dachgeschoß",null,null,"2. Obergeschoß",null,null,"1. Obergeschoß",null,null,"Erdgeschoß",null,null,"Keller"]
[null,null,"Nutzfläche",null,null,null,null,null,null,"m²",null,null,"m²",null,null,"m²",null,null,"m²",null,null,"m²"]
[null,null,"Raumhöhe",null,null,null,null,null,null,"m",null,null,"m",null,null,"m",null,null,"m",null,null,"m"]
[null,null,"Anzahl Räume ab 4 m²"]
[null,null,"In der Nutzungseinheit befinden sich:"]
[null,null,"Rechtsverhältnis:",null,null,null,null,"Bitte auswählen ..."]
[null,null,{"$f":"Vorgaben!$S$3","v":"Nur auszufüllen, wenn abweichend vom Gebäude lt. Pt. A des Tabellenblatte \"AGWR II\":"}]
[null,null,"Wärmebereitstellungssystem",null,null,null,null,null,null,"Art des Brennstoffes",null,null,null,null,null,null,"Wärmeabgabesystem"]
[null,null,"Bitte auswählen ...",null,null,null,null,null,null,"Bitte auswählen ...",null,null,null,null,null,null,"Bitte auswählen ..."]
[]
[null,null,"Art der Warmwasseraufbereitung",null,null,null,null,null,null,null,null,null,"Belüftungsart"]
[null,null,"Bitte auswählen ...",null,null,null,null,null,null,null,null,null,"Bitte auswählen ..."]
[]
[]
[null,null,"Nutzungseinheit Nr. 8 - verteilt sich über",null,null,null,null,null,null,null,null,"Geschoß(e)"]
[null,null,"Nutzungsart:",null,null,null,null,"Bitte auswählen ..."]
[null,null,"Geschoßangabe",null,null,null,null,"Dachgeschoß",null,null,"2. Obergeschoß",null,null,"1. Obergeschoß",null,null,"Erdgeschoß",null,null,"Keller"]
[null,null,"Nutzfläche",null,null,null,null,null,null,"m²",null,null,"m²",null,null,"m²",null,null,"m²",null,null,"m²"]
[null,null,"Raumhöhe",null,null,null,null,null,null,"m",null,null,"m",null,null,"m",null,null,"m",null,null,"m"]
[null,null,"Anzahl Räume ab 4 m²"]
[null,null,"In der Nutzungseinheit befinden sich:"]
[null,null,"Rechtsverhältnis:",null,null,null,null,"Bitte auswählen ..."]
[null,null,{"$f":"Vorgaben!$S$3","v":"Nur auszufüllen, wenn abweichend vom Gebäude lt. Pt. A des Tabellenblatte \"AGWR II\":"}]
[null,null,"Wärmebereitstellungssystem",null,null,null,null,null,null,"Art des Brennstoffes",null,null,null,null,null,null,"Wärmeabgabesystem"]
[null,null,"Bitte auswählen ...",null,null,null,null,null,null,"Bitte auswählen ...",null,null,null,null,null,null,"Bitte auswählen ..."]
[]
[null,null,"Art der Warmwasseraufbereitung",null,null,null,null,null,null,null,null,null,"Belüftungsart"]
[null,null,"Bitte auswählen ...",null,null,null,null,null,null,null,null,null,"Bitte auswählen ..."]
[]
[]
[null,null,"Nutzungseinheit Nr. 9 - verteilt sich über",null,null,null,null,null,null,null,null,"Geschoß(e)"]
[null,null,"Nutzungsart:",null,null,null,null,"Bitte auswählen ..."]
[null,null,"Geschoßangabe",null,null,null,null,"Dachgeschoß",null,null,"2. Obergeschoß",null,null,"1. Obergeschoß",null,null,"Erdgeschoß",null,null,"Keller"]
[null,null,"Nutzfläche",null,null,null,null,null,null,"m²",null,null,"m²",null,null,"m²",null,null,"m²",null,null,"m²"]
[null,null,"Raumhöhe",null,null,null,null,null,null,"m",null,null,"m",null,null,"m",null,null,"m",null,null,"m"]
[null,null,"Anzahl Räume ab 4 m²"]
[null,null,"In der Nutzungseinheit befinden sich:"]
[null,null,"Rechtsverhältnis:",null,null,null,null,"Bitte auswählen ..."]
[null,null,{"$f":"Vorgaben!$S$3","v":"Nur auszufüllen, wenn abweichend vom Gebäude lt. Pt. A des Tabellenblatte \"AGWR II\":"}]
[null,null,"Wärmebereitstellungssystem",null,null,null,null,null,null,"Art des Brennstoffes",null,null,null,null,null,null,"Wärmeabgabesystem"]
[null,null,"Bitte auswählen ...",null,null,null,null,null,null,"Bitte auswählen ...",null,null,null,null,null,null,"Bitte auswählen ..."]
[]
[null,null,"Art der Warmwasseraufbereitung",null,null,null,null,null,null,null,null,null,"Belüftungsart"]
[null,null,"Bitte auswählen ...",null,null,null,null,null,null,null,null,null,"Bitte auswählen ..."]
[]
[]
[]
[null,{"$f":"$C$1","v":"AGWR II - Statistische Angaben zu weiteren Nutzungseinheiten"}]
[null,{"$f":"IF(BauansDat<>\"\",CONCATENATE(\"betreffend Bauansuchen vom \",TEXT(BauansDat,\"TT.MM.JJJJ\"), \" - Bauwerber/in: \", Bauwerber,\", \",AdrBauwerber),CONCATENATE(\"Statistische Angaben (AGWR II)\", \" - Bauwerber/in: \", Bauwerber,\", \",AdrBauwerber))","v":"Statistische Angaben (AGWR II) - Bauwerber/in: , "}]
[]
[null,null,{"$f":"Vorgaben!$S$4","v":"AGWR II - Statistische Angaben zu weiteren Nutzungseinheiten"},null,null,null,null,null,null,null,null,null,null,null,null,null,null,null,null,3]
[]
[null,null,"Nutzungseinheit Nr. 10 - verteilt sich über",null,null,null,null,null,null,null,null,"Geschoß(e)"]
[null,null,"Nutzungsart:",null,null,null,null,"Bitte auswählen ..."]
[null,null,"Geschoßangabe",null,null,null,null,"Dachgeschoß",null,null,"2. Obergeschoß",null,null,"1. Obergeschoß",null,null,"Erdgeschoß",null,null,"Keller"]
[null,null,"Nutzfläche",null,null,null,null,null,null,"m²",null,null,"m²",null,null,"m²",null,null,"m²",null,null,"m²"]
[null,null,"Raumhöhe",null,null,null,null,null,null,"m",null,null,"m",null,null,"m",null,null,"m",null,null,"m"]
[null,null,"Anzahl Räume ab 4 m²"]
[null,null,"In der Nutzungseinheit befinden sich:"]
[null,null,"Rechtsverhältnis:",null,null,null,null,"Bitte auswählen ..."]
[null,null,{"$f":"Vorgaben!$S$3","v":"Nur auszufüllen, wenn abweichend vom Gebäude lt. Pt. A des Tabellenblatte \"AGWR II\":"}]
[null,null,"Wärmebereitstellungssystem",null,null,null,null,null,null,"Art des Brennstoffes",null,null,null,null,null,null,"Wärmeabgabesystem"]
[null,null,"Bitte auswählen ...",null,null,null,null,null,null,"Bitte auswählen ...",null,null,null,null,null,null,"Bitte auswählen ..."]
[]
[null,null,"Art der Warmwasseraufbereitung",null,null,null,null,null,null,null,null,null,"Belüftungsart"]
[null,null,"Bitte auswählen ...",null,null,null,null,null,null,null,null,null,"Bitte auswählen ..."]
[]
[]
[null,null,"Nutzungseinheit Nr. 11 - verteilt sich über",null,null,null,null,null,null,null,null,"Geschoß(e)"]
[null,null,"Nutzungsart:",null,null,null,null,"Bitte auswählen ..."]
[null,null,"Geschoßangabe",null,null,null,null,"Dachgeschoß",null,null,"2. Obergeschoß",null,null,"1. Obergeschoß",null,null,"Erdgeschoß",null,null,"Keller"]
[null,null,"Nutzfläche",null,null,null,null,null,null,"m²",null,null,"m²",null,null,"m²",null,null,"m²",null,null,"m²"]
[null,null,"Raumhöhe",null,null,null,null,null,null,"m",null,null,"m",null,null,"m",null,null,"m",null,null,"m"]
[null,null,"Anzahl Räume ab 4 m²"]
[null,null,"In der Nutzungseinheit befinden sich:"]
[null,null,"Rechtsverhältnis:",null,null,null,null,"Bitte auswählen ..."]
[null,null,{"$f":"Vorgaben!$S$3","v":"Nur auszufüllen, wenn abweichend vom Gebäude lt. Pt. A des Tabellenblatte \"AGWR II\":"}]
[null,null,"Wärmebereitstellungssystem",null,null,null,null,null,null,"Art des Brennstoffes",null,null,null,null,null,null,"Wärmeabgabesystem"]
[null,null,"Bitte auswählen ...",null,null,null,null,null,null,"Bitte auswählen ...",null,null,null,null,null,null,"Bitte auswählen ..."]
[]
[null,null,"Art der Warmwasseraufbereitung",null,null,null,null,null,null,null,null,null,"Belüftungsart"]
[null,null,"Bitte auswählen ...",null,null,null,null,null,null,null,null,null,"Bitte auswählen ..."]
[]
[]
[null,null,"Nutzungseinheit Nr. 12 - verteilt sich über",null,null,null,null,null,null,null,null,"Geschoß(e)"]
[null,null,"Nutzungsart:",null,null,null,null,"Bitte auswählen ..."]
[null,null,"Geschoßangabe",null,null,null,null,"Dachgeschoß",null,null,"2. Obergeschoß",null,null,"1. Obergeschoß",null,null,"Erdgeschoß",null,null,"Keller"]
[null,null,"Nutzfläche",null,null,null,null,null,null,"m²",null,null,"m²",null,null,"m²",null,null,"m²",null,null,"m²"]
[null,null,"Raumhöhe",null,null,null,null,null,null,"m",null,null,"m",null,null,"m",null,null,"m",null,null,"m"]
[null,null,"Anzahl Räume ab 4 m²"]
[null,null,"In der Nutzungseinheit befinden sich:"]
[null,null,"Rechtsverhältnis:",null,null,null,null,"Bitte auswählen ..."]
[null,null,{"$f":"Vorgaben!$S$3","v":"Nur auszufüllen, wenn abweichend vom Gebäude lt. Pt. A des Tabellenblatte \"AGWR II\":"}]
[null,null,"Wärmebereitstellungssystem",null,null,null,null,null,null,"Art des Brennstoffes",null,null,null,null,null,null,"Wärmeabgabesystem"]
[null,null,"Bitte auswählen ...",null,null,null,null,null,null,"Bitte auswählen ...",null,null,null,null,null,null,"Bitte auswählen ..."]
[]
[null,null,"Art der Warmwasseraufbereitung",null,null,null,null,null,null,null,null,null,"Belüftungsart"]
[null,null,"Bitte auswählen ...",null,null,null,null,null,null,null,null,null,"Bitte auswählen ..."]
[]
[]
[]
[null,{"$f":"$C$1","v":"AGWR II - Statistische Angaben zu weiteren Nutzungseinheiten"}]
[null,{"$f":"IF(BauansDat<>\"\",CONCATENATE(\"betreffend Bauansuchen vom \",TEXT(BauansDat,\"TT.MM.JJJJ\"), \" - Bauwerber/in: \", Bauwerber,\", \",AdrBauwerber),CONCATENATE(\"Statistische Angaben (AGWR II)\", \" - Bauwerber/in: \", Bauwerber,\", \",AdrBauwerber))","v":"Statistische Angaben (AGWR II) - Bauwerber/in: , "}]
[]
[null,null,{"$f":"Vorgaben!$S$4","v":"AGWR II - Statistische Angaben zu weiteren Nutzungseinheiten"},null,null,null,null,null,null,null,null,null,null,null,null,null,null,null,null,4]
[]
[null,null,"Nutzungseinheit Nr. 13 - verteilt sich über",null,null,null,null,null,null,null,null,"Geschoß(e)"]
[null,null,"Nutzungsart:",null,null,null,null,"Bitte auswählen ..."]
[null,null,"Geschoßangabe",null,null,null,null,"Dachgeschoß",null,null,"2. Obergeschoß",null,null,"1. Obergeschoß",null,null,"Erdgeschoß",null,null,"Keller"]
[null,null,"Nutzfläche",null,null,null,null,null,null,"m²",null,null,"m²",null,null,"m²",null,null,"m²",null,null,"m²"]
[null,null,"Raumhöhe",null,null,null,null,null,null,"m",null,null,"m",null,null,"m",null,null,"m",null,null,"m"]
[null,null,"Anzahl Räume ab 4 m²"]
[null,null,"In der Nutzungseinheit befinden sich:"]
[null,null,"Rechtsverhältnis:",null,null,null,null,"Bitte auswählen ..."]
[null,null,{"$f":"Vorgaben!$S$3","v":"Nur auszufüllen, wenn abweichend vom Gebäude lt. Pt. A des Tabellenblatte \"AGWR II\":"}]
[null,null,"Wärmebereitstellungssystem",null,null,null,null,null,null,"Art des Brennstoffes",null,null,null,null,null,null,"Wärmeabgabesystem"]
[null,null,"Bitte auswählen ...",null,null,null,null,null,null,"Bitte auswählen ...",null,null,null,null,null,null,"Bitte auswählen ..."]
[]
[null,null,"Art der Warmwasseraufbereitung",null,null,null,null,null,null,null,null,null,"Belüftungsart"]
[null,null,"Bitte auswählen ...",null,null,null,null,null,null,null,null,null,"Bitte auswählen ..."]
[]
[]
[null,null,"Nutzungseinheit Nr. 14 - verteilt sich über",null,null,null,null,null,null,null,null,"Geschoß(e)"]
[null,null,"Nutzungsart:",null,null,null,null,"Bitte auswählen ..."]
[null,null,"Geschoßangabe",null,null,null,null,"Dachgeschoß",null,null,"2. Obergeschoß",null,null,"1. Obergeschoß",null,null,"Erdgeschoß",null,null,"Keller"]
[null,null,"Nutzfläche",null,null,null,null,null,null,"m²",null,null,"m²",null,null,"m²",null,null,"m²",null,null,"m²"]
[null,null,"Raumhöhe",null,null,null,null,null,null,"m",null,null,"m",null,null,"m",null,null,"m",null,null,"m"]
[null,null,"Anzahl Räume ab 4 m²"]
[null,null,"In der Nutzungseinheit befinden sich:"]
[null,null,"Rechtsverhältnis:",null,null,null,null,"Bitte auswählen ..."]
[null,null,{"$f":"Vorgaben!$S$3","v":"Nur auszufüllen, wenn abweichend vom Gebäude lt. Pt. A des Tabellenblatte \"AGWR II\":"}]
[null,null,"Wärmebereitstellungssystem",null,null,null,null,null,null,"Art des Brennstoffes",null,null,null,null,null,null,"Wärmeabgabesystem"]
[null,null,"Bitte auswählen ...",null,null,null,null,null,null,"Bitte auswählen ...",null,null,null,null,null,null,"Bitte auswählen ..."]
[]
[null,null,"Art der Warmwasseraufbereitung",null,null,null,null,null,null,null,null,null,"Belüftungsart"]
[null,null,"Bitte auswählen ...",null,null,null,null,null,null,null,null,null,"Bitte auswählen ..."]
[]
[]
[null,null,"Nutzungseinheit Nr. 15 - verteilt sich über",null,null,null,null,null,null,null,null,"Geschoß(e)"]
[null,null,"Nutzungsart:",null,null,null,null,"Bitte auswählen ..."]
[null,null,"Geschoßangabe",null,null,null,null,"Dachgeschoß",null,null,"2. Obergeschoß",null,null,"1. Obergeschoß",null,null,"Erdgeschoß",null,null,"Keller"]
[null,null,"Nutzfläche",null,null,null,null,null,null,"m²",null,null,"m²",null,null,"m²",null,null,"m²",null,null,"m²"]
[null,null,"Raumhöhe",null,null,null,null,null,null,"m",null,null,"m",null,null,"m",null,null,"m",null,null,"m"]
[null,null,"Anzahl Räume ab 4 m²"]
[null,null,"In der Nutzungseinheit befinden sich:"]
[null,null,"Rechtsverhältnis:",null,null,null,null,"Bitte auswählen ..."]
[null,null,{"$f":"Vorgaben!$S$3","v":"Nur auszufüllen, wenn abweichend vom Gebäude lt. Pt. A des Tabellenblatte \"AGWR II\":"}]
[null,null,"Wärmebereitstellungssystem",null,null,null,null,null,null,"Art des Brennstoffes",null,null,null,null,null,null,"Wärmeabgabesystem"]
[null,null,"Bitte auswählen ...",null,null,null,null,null,null,"Bitte auswählen ...",null,null,null,null,null,null,"Bitte auswählen ..."]
[]
[null,null,"Art der Warmwasseraufbereitung",null,null,null,null,null,null,null,null,null,"Belüftungsart"]
[null,null,"Bitte auswählen ...",null,null,null,null,null,null,null,null,null,"Bitte auswählen ..."]
[]
[]
[]
[null,{"$f":"$C$1","v":"AGWR II - Statistische Angaben zu weiteren Nutzungseinheiten"}]
[null,{"$f":"IF(BauansDat<>\"\",CONCATENATE(\"betreffend Bauansuchen vom \",TEXT(BauansDat,\"TT.MM.JJJJ\"), \" - Bauwerber/in: \", Bauwerber,\", \",AdrBauwerber),CONCATENATE(\"Statistische Angaben (AGWR II)\", \" - Bauwerber/in: \", Bauwerber,\", \",AdrBauwerber))","v":"Statistische Angaben (AGWR II) - Bauwerber/in: , "}]
[]
[null,null,{"$f":"Vorgaben!$S$4","v":"AGWR II - Statistische Angaben zu weiteren Nutzungseinheiten"},null,null,null,null,null,null,null,null,null,null,null,null,null,null,null,null,5]
[]
[null,null,"Nutzungseinheit Nr. 16 - verteilt sich über",null,null,null,null,null,null,null,null,"Geschoß(e)"]
[null,null,"Nutzungsart:",null,null,null,null,"Bitte auswählen ..."]
[null,null,"Geschoßangabe",null,null,null,null,"Dachgeschoß",null,null,"2. Obergeschoß",null,null,"1. Obergeschoß",null,null,"Erdgeschoß",null,null,"Keller"]
[null,null,"Nutzfläche",null,null,null,null,null,null,"m²",null,null,"m²",null,null,"m²",null,null,"m²",null,null,"m²"]
[null,null,"Raumhöhe",null,null,null,null,null,null,"m",null,null,"m",null,null,"m",null,null,"m",null,null,"m"]
[null,null,"Anzahl Räume ab 4 m²"]
[null,null,"In der Nutzungseinheit befinden sich:"]
[null,null,"Rechtsverhältnis:",null,null,null,null,"Bitte auswählen ..."]
[null,null,{"$f":"Vorgaben!$S$3","v":"Nur auszufüllen, wenn abweichend vom Gebäude lt. Pt. A des Tabellenblatte \"AGWR II\":"}]
[null,null,"Wärmebereitstellungssystem",null,null,null,null,null,null,"Art des Brennstoffes",null,null,null,null,null,null,"Wärmeabgabesystem"]
[null,null,"Bitte auswählen ...",null,null,null,null,null,null,"Bitte auswählen ...",null,null,null,null,null,null,"Bitte auswählen ..."]
[]
[null,null,"Art der Warmwasseraufbereitung",null,null,null,null,null,null,null,null,null,"Belüftungsart"]
[null,null,"Bitte auswählen ...",null,null,null,null,null,null,null,null,null,"Bitte auswählen ..."]
[]
[]
[null,null,"Nutzungseinheit Nr. 17 - verteilt sich über",null,null,null,null,null,null,null,null,"Geschoß(e)"]
[null,null,"Nutzungsart:",null,null,null,null,"Bitte auswählen ..."]
[null,null,"Geschoßangabe",null,null,null,null,"Dachgeschoß",null,null,"2. Obergeschoß",null,null,"1. Obergeschoß",null,null,"Erdgeschoß",null,null,"Keller"]
[null,null,"Nutzfläche",null,null,null,null,null,null,"m²",null,null,"m²",null,null,"m²",null,null,"m²",null,null,"m²"]
[null,null,"Raumhöhe",null,null,null,null,null,null,"m",null,null,"m",null,null,"m",null,null,"m",null,null,"m"]
[null,null,"Anzahl Räume ab 4 m²"]
[null,null,"In der Nutzungseinheit befinden sich:"]
[null,null,"Rechtsverhältnis:",null,null,null,null,"Bitte auswählen ..."]
[null,null,{"$f":"Vorgaben!$S$3","v":"Nur auszufüllen, wenn abweichend vom Gebäude lt. Pt. A des Tabellenblatte \"AGWR II\":"}]
[null,null,"Wärmebereitstellungssystem",null,null,null,null,null,null,"Art des Brennstoffes",null,null,null,null,null,null,"Wärmeabgabesystem"]
[null,null,"Bitte auswählen ...",null,null,null,null,null,null,"Bitte auswählen ...",null,null,null,null,null,null,"Bitte auswählen ..."]
[]
[null,null,"Art der Warmwasseraufbereitung",null,null,null,null,null,null,null,null,null,"Belüftungsart"]
[null,null,"Bitte auswählen ...",null,null,null,null,null,null,null,null,null,"Bitte auswählen ..."]
[]
[]
[null,null,"Nutzungseinheit Nr. 18 - verteilt sich über",null,null,null,null,null,null,null,null,"Geschoß(e)"]
[null,null,"Nutzungsart:",null,null,null,null,"Bitte auswählen ..."]
[null,null,"Geschoßangabe",null,null,null,null,"Dachgeschoß",null,null,"2. Obergeschoß",null,null,"1. Obergeschoß",null,null,"Erdgeschoß",null,null,"Keller"]
[null,null,"Nutzfläche",null,null,null,null,null,null,"m²",null,null,"m²",null,null,"m²",null,null,"m²",null,null,"m²"]
[null,null,"Raumhöhe",null,null,null,null,null,null,"m",null,null,"m",null,null,"m",null,null,"m",null,null,"m"]
[null,null,"Anzahl Räume ab 4 m²"]
[null,null,"In der Nutzungseinheit befinden sich:"]
[null,null,"Rechtsverhältnis:",null,null,null,null,"Bitte auswählen ..."]
[null,null,{"$f":"Vorgaben!$S$3","v":"Nur auszufüllen, wenn abweichend vom Gebäude lt. Pt. A des Tabellenblatte \"AGWR II\":"}]
[null,null,"Wärmebereitstellungssystem",null,null,null,null,null,null,"Art des Brennstoffes",null,null,null,null,null,null,"Wärmeabgabesystem"]
[null,null,"Bitte auswählen ...",null,null,null,null,null,null,"Bitte auswählen ...",null,null,null,null,null,null,"Bitte auswählen ..."]
[]
[null,null,"Art der Warmwasseraufbereitung",null,null,null,null,null,null,null,null,null,"Belüftungsart"]
[null,null,"Bitte auswählen ...",null,null,null,null,null,null,null,null,null,"Bitte auswählen ..."]
[]
[]
[]
[null,{"$f":"$C$1","v":"AGWR II - Statistische Angaben zu weiteren Nutzungseinheiten"}]
[null,{"$f":"IF(BauansDat<>\"\",CONCATENATE(\"betreffend Bauansuchen vom \",TEXT(BauansDat,\"TT.MM.JJJJ\"), \" - Bauwerber/in: \", Bauwerber,\", \",AdrBauwerber),CONCATENATE(\"Statistische Angaben (AGWR II)\", \" - Bauwerber/in: \", Bauwerber,\", \",AdrBauwerber))","v":"Statistische Angaben (AGWR II) - Bauwerber/in: , "}]
[]
[null,null,{"$f":"Vorgaben!$S$4","v":"AGWR II - Statistische Angaben zu weiteren Nutzungseinheiten"},null,null,null,null,null,null,null,null,null,null,null,null,null,null,null,null,6]
[]
[null,null,"Nutzungseinheit Nr. 19 - verteilt sich über",null,null,null,null,null,null,null,null,"Geschoß(e)"]
[null,null,"Nutzungsart:",null,null,null,null,"Bitte auswählen ..."]
[null,null,"Geschoßangabe",null,null,null,null,"Dachgeschoß",null,null,"2. Obergeschoß",null,null,"1. Obergeschoß",null,null,"Erdgeschoß",null,null,"Keller"]
[null,null,"Nutzfläche",null,null,null,null,null,null,"m²",null,null,"m²",null,null,"m²",null,null,"m²",null,null,"m²"]
[null,null,"Raumhöhe",null,null,null,null,null,null,"m",null,null,"m",null,null,"m",null,null,"m",null,null,"m"]
[null,null,"Anzahl Räume ab 4 m²"]
[null,null,"In der Nutzungseinheit befinden sich:"]
[null,null,"Rechtsverhältnis:",null,null,null,null,"Bitte auswählen ..."]
[null,null,{"$f":"Vorgaben!$S$3","v":"Nur auszufüllen, wenn abweichend vom Gebäude lt. Pt. A des Tabellenblatte \"AGWR II\":"}]
[null,null,"Wärmebereitstellungssystem",null,null,null,null,null,null,"Art des Brennstoffes",null,null,null,null,null,null,"Wärmeabgabesystem"]
[null,null,"Bitte auswählen ...",null,null,null,null,null,null,"Bitte auswählen ...",null,null,null,null,null,null,"Bitte auswählen ..."]
[]
[null,null,"Art der Warmwasseraufbereitung",null,null,null,null,null,null,null,null,null,"Belüftungsart"]
[null,null,"Bitte auswählen ...",null,null,null,null,null,null,null,null,null,"Bitte auswählen ..."]
[]
[]
[null,null,"Nutzungseinheit Nr. 20 - verteilt sich über",null,null,null,null,null,null,null,null,"Geschoß(e)"]
[null,null,"Nutzungsart:",null,null,null,null,"Bitte auswählen ..."]
[null,null,"Geschoßangabe",null,null,null,null,"Dachgeschoß",null,null,"2. Obergeschoß",null,null,"1. Obergeschoß",null,null,"Erdgeschoß",null,null,"Keller"]
[null,null,"Nutzfläche",null,null,null,null,null,null,"m²",null,null,"m²",null,null,"m²",null,null,"m²",null,null,"m²"]
[null,null,"Raumhöhe",null,null,null,null,null,null,"m",null,null,"m",null,null,"m",null,null,"m",null,null,"m"]
[null,null,"Anzahl Räume ab 4 m²"]
[null,null,"In der Nutzungseinheit befinden sich:"]
[null,null,"Rechtsverhältnis:",null,null,null,null,"Bitte auswählen ..."]
[null,null,{"$f":"Vorgaben!$S$3","v":"Nur auszufüllen, wenn abweichend vom Gebäude lt. Pt. A des Tabellenblatte \"AGWR II\":"}]
[null,null,"Wärmebereitstellungssystem",null,null,null,null,null,null,"Art des Brennstoffes",null,null,null,null,null,null,"Wärmeabgabesystem"]
[null,null,"Bitte auswählen ...",null,null,null,null,null,null,"Bitte auswählen ...",null,null,null,null,null,null,"Bitte auswählen ..."]
[]
[null,null,"Art der Warmwasseraufbereitung",null,null,null,null,null,null,null,null,null,"Belüftungsart"]
[null,null,"Bitte auswählen ...",null,null,null,null,null,null,null,null,null,"Bitte auswählen ..."]
[]
[]
[null,null,"Nutzungseinheit Nr. 21 - verteilt sich über",null,null,null,null,null,null,null,null,"Geschoß(e)"]
[null,null,"Nutzungsart:",null,null,null,null,"Bitte auswählen ..."]
[null,null,"Geschoßangabe",null,null,null,null,"Dachgeschoß",null,null,"2. Obergeschoß",null,null,"1. Obergeschoß",null,null,"Erdgeschoß",null,null,"Keller"]
[null,null,"Nutzfläche",null,null,null,null,null,null,"m²",null,null,"m²",null,null,"m²",null,null,"m²",null,null,"m²"]
[null,null,"Raumhöhe",null,null,null,null,null,null,"m",null,null,"m",null,null,"m",null,null,"m",null,null,"m"]
[null,null,"Anzahl Räume ab 4 m²"]
[null,null,"In der Nutzungseinheit befinden sich:"]
[null,null,"Rechtsverhältnis:",null,null,null,null,"Bitte auswählen ..."]
[null,null,{"$f":"Vorgaben!$S$3","v":"Nur auszufüllen, wenn abweichend vom Gebäude lt. Pt. A des Tabellenblatte \"AGWR II\":"}]
[null,null,"Wärmebereitstellungssystem",null,null,null,null,null,null,"Art des Brennstoffes",null,null,null,null,null,null,"Wärmeabgabesystem"]
[null,null,"Bitte auswählen ...",null,null,null,null,null,null,"Bitte auswählen ...",null,null,null,null,null,null,"Bitte auswählen ..."]
[]
[null,null,"Art der Warmwasseraufbereitung",null,null,null,null,null,null,null,null,null,"Belüftungsart"]
[null,null,"Bitte auswählen ...",null,null,null,null,null,null,null,null,null,"Bitte auswählen ..."]
[]
[]
[]
[null,{"$f":"$C$1","v":"AGWR II - Statistische Angaben zu weiteren Nutzungseinheiten"}]
[null,{"$f":"IF(BauansDat<>\"\",CONCATENATE(\"betreffend Bauansuchen vom \",TEXT(BauansDat,\"TT.MM.JJJJ\"), \" - Bauwerber/in: \", Bauwerber,\", \",AdrBauwerber),CONCATENATE(\"Statistische Angaben (AGWR II)\", \" - Bauwerber/in: \", Bauwerber,\", \",AdrBauwerber))","v":"Statistische Angaben (AGWR II) - Bauwerber/in: , "}]
[]
[null,null,{"$f":"Vorgaben!$S$4","v":"AGWR II - Statistische Angaben zu weiteren Nutzungseinheiten"},null,null,null,null,null,null,null,null,null,null,null,null,null,null,null,null,7]
[]
[null,null,"Nutzungseinheit Nr. 22 - verteilt sich über",null,null,null,null,null,null,null,null,"Geschoß(e)"]
[null,null,"Nutzungsart:",null,null,null,null,"Bitte auswählen ..."]
[null,null,"Geschoßangabe",null,null,null,null,"Dachgeschoß",null,null,"2. Obergeschoß",null,null,"1. Obergeschoß",null,null,"Erdgeschoß",null,null,"Keller"]
[null,null,"Nutzfläche",null,null,null,null,null,null,"m²",null,null,"m²",null,null,"m²",null,null,"m²",null,null,"m²"]
[null,null,"Raumhöhe",null,null,null,null,null,null,"m",null,null,"m",null,null,"m",null,null,"m",null,null,"m"]
[null,null,"Anzahl Räume ab 4 m²"]
[null,null,"In der Nutzungseinheit befinden sich:"]
[null,null,"Rechtsverhältnis:",null,null,null,null,"Bitte auswählen ..."]
[null,null,{"$f":"Vorgaben!$S$3","v":"Nur auszufüllen, wenn abweichend vom Gebäude lt. Pt. A des Tabellenblatte \"AGWR II\":"}]
[null,null,"Wärmebereitstellungssystem",null,null,null,null,null,null,"Art des Brennstoffes",null,null,null,null,null,null,"Wärmeabgabesystem"]
[null,null,"Bitte auswählen ...",null,null,null,null,null,null,"Bitte auswählen ...",null,null,null,null,null,null,"Bitte auswählen ..."]
[]
[null,null,"Art der Warmwasseraufbereitung",null,null,null,null,null,null,null,null,null,"Belüftungsart"]
[null,null,"Bitte auswählen ...",null,null,null,null,null,null,null,null,null,"Bitte auswählen ..."]
[]
[]
[null,null,"Nutzungseinheit Nr. 23 - verteilt sich über",null,null,null,null,null,null,null,null,"Geschoß(e)"]
[null,null,"Nutzungsart:",null,null,null,null,"Bitte auswählen ..."]
[null,null,"Geschoßangabe",null,null,null,null,"Dachgeschoß",null,null,"2. Obergeschoß",null,null,"1. Obergeschoß",null,null,"Erdgeschoß",null,null,"Keller"]
[null,null,"Nutzfläche",null,null,null,null,null,null,"m²",null,null,"m²",null,null,"m²",null,null,"m²",null,null,"m²"]
[null,null,"Raumhöhe",null,null,null,null,null,null,"m",null,null,"m",null,null,"m",null,null,"m",null,null,"m"]
[null,null,"Anzahl Räume ab 4 m²"]
[null,null,"In der Nutzungseinheit befinden sich:"]
[null,null,"Rechtsverhältnis:",null,null,null,null,"Bitte auswählen ..."]
[null,null,{"$f":"Vorgaben!$S$3","v":"Nur auszufüllen, wenn abweichend vom Gebäude lt. Pt. A des Tabellenblatte \"AGWR II\":"}]
[null,null,"Wärmebereitstellungssystem",null,null,null,null,null,null,"Art des Brennstoffes",null,null,null,null,null,null,"Wärmeabgabesystem"]
[null,null,"Bitte auswählen ...",null,null,null,null,null,null,"Bitte auswählen ...",null,null,null,null,null,null,"Bitte auswählen ..."]
[]
[null,null,"Art der Warmwasseraufbereitung",null,null,null,null,null,null,null,null,null,"Belüftungsart"]
[null,null,"Bitte auswählen ...",null,null,null,null,null,null,null,null,null,"Bitte auswählen ..."]
[]
[]
[null,null,"Nutzungseinheit Nr. 24 - verteilt sich über",null,null,null,null,null,null,null,null,"Geschoß(e)"]
[null,null,"Nutzungsart:",null,null,null,null,"Bitte auswählen ..."]
[null,null,"Geschoßangabe",null,null,null,null,"Dachgeschoß",null,null,"2. Obergeschoß",null,null,"1. Obergeschoß",null,null,"Erdgeschoß",null,null,"Keller"]
[null,null,"Nutzfläche",null,null,null,null,null,null,"m²",null,null,"m²",null,null,"m²",null,null,"m²",null,null,"m²"]
[null,null,"Raumhöhe",null,null,null,null,null,null,"m",null,null,"m",null,null,"m",null,null,"m",null,null,"m"]
[null,null,"Anzahl Räume ab 4 m²"]
[null,null,"In der Nutzungseinheit befinden sich:"]
[null,null,"Rechtsverhältnis:",null,null,null,null,"Bitte auswählen ..."]
[null,null,{"$f":"Vorgaben!$S$3","v":"Nur auszufüllen, wenn abweichend vom Gebäude lt. Pt. A des Tabellenblatte \"AGWR II\":"}]
[null,null,"Wärmebereitstellungssystem",null,null,null,null,null,null,"Art des Brennstoffes",null,null,null,null,null,null,"Wärmeabgabesystem"]
[null,null,"Bitte auswählen ...",null,null,null,null,null,null,"Bitte auswählen ...",null,null,null,null,null,null,"Bitte auswählen ..."]
[]
[null,null,"Art der Warmwasseraufbereitung",null,null,null,null,null,null,null,null,null,"Belüftungsart"]
[null,null,"Bitte auswählen ...",null,null,null,null,null,null,null,null,null,"Bitte auswählen ..."]
[]
[]
[]
[null,{"$f":"$C$1","v":"AGWR II - Statistische Angaben zu weiteren Nutzungseinheiten"}]
[null,{"$f":"IF(BauansDat<>\"\",CONCATENATE(\"betreffend Bauansuchen vom \",TEXT(BauansDat,\"TT.MM.JJJJ\"), \" - Bauwerber/in: \", Bauwerber,\", \",AdrBauwerber),CONCATENATE(\"Statistische Angaben (AGWR II)\", \" - Bauwerber/in: \", Bauwerber,\", \",AdrBauwerber))","v":"Statistische Angaben (AGWR II) - Bauwerber/in: , "}]
[]
[null,null,{"$f":"Vorgaben!$S$4","v":"AGWR II - Statistische Angaben zu weiteren Nutzungseinheiten"},null,null,null,null,null,null,null,null,null,null,null,null,null,null,null,null,8]
[]
[null,null,"Nutzungseinheit Nr. 25 - verteilt sich über",null,null,null,null,null,null,null,null,"Geschoß(e)"]
[null,null,"Nutzungsart:",null,null,null,null,"Bitte auswählen ..."]
[null,null,"Geschoßangabe",null,null,null,null,"Dachgeschoß",null,null,"2. Obergeschoß",null,null,"1. Obergeschoß",null,null,"Erdgeschoß",null,null,"Keller"]
[null,null,"Nutzfläche",null,null,null,null,null,null,"m²",null,null,"m²",null,null,"m²",null,null,"m²",null,null,"m²"]
[null,null,"Raumhöhe",null,null,null,null,null,null,"m",null,null,"m",null,null,"m",null,null,"m",null,null,"m"]
[null,null,"Anzahl Räume ab 4 m²"]
[null,null,"In der Nutzungseinheit befinden sich:"]
[null,null,"Rechtsverhältnis:",null,null,null,null,"Bitte auswählen ..."]
[null,null,{"$f":"Vorgaben!$S$3","v":"Nur auszufüllen, wenn abweichend vom Gebäude lt. Pt. A des Tabellenblatte \"AGWR II\":"}]
[null,null,"Wärmebereitstellungssystem",null,null,null,null,null,null,"Art des Brennstoffes",null,null,null,null,null,null,"Wärmeabgabesystem"]
[null,null,"Bitte auswählen ...",null,null,null,null,null,null,"Bitte auswählen ...",null,null,null,null,null,null,"Bitte auswählen ..."]
[]
[null,null,"Art der Warmwasseraufbereitung",null,null,null,null,null,null,null,null,null,"Belüftungsart"]
[null,null,"Bitte auswählen ...",null,null,null,null,null,null,null,null,null,"Bitte auswählen ..."]
[]
[]
[null,null,"Nutzungseinheit Nr. 26 - verteilt sich über",null,null,null,null,null,null,null,null,"Geschoß(e)"]
[null,null,"Nutzungsart:",null,null,null,null,"Bitte auswählen ..."]
[null,null,"Geschoßangabe",null,null,null,null,"Dachgeschoß",null,null,"2. Obergeschoß",null,null,"1. Obergeschoß",null,null,"Erdgeschoß",null,null,"Keller"]
[null,null,"Nutzfläche",null,null,null,null,null,null,"m²",null,null,"m²",null,null,"m²",null,null,"m²",null,null,"m²"]
[null,null,"Raumhöhe",null,null,null,null,null,null,"m",null,null,"m",null,null,"m",null,null,"m",null,null,"m"]
[null,null,"Anzahl Räume ab 4 m²"]
[null,null,"In der Nutzungseinheit befinden sich:"]
[null,null,"Rechtsverhältnis:",null,null,null,null,"Bitte auswählen ..."]
[null,null,{"$f":"Vorgaben!$S$3","v":"Nur auszufüllen, wenn abweichend vom Gebäude lt. Pt. A des Tabellenblatte \"AGWR II\":"}]
[null,null,"Wärmebereitstellungssystem",null,null,null,null,null,null,"Art des Brennstoffes",null,null,null,null,null,null,"Wärmeabgabesystem"]
[null,null,"Bitte auswählen ...",null,null,null,null,null,null,"Bitte auswählen ...",null,null,null,null,null,null,"Bitte auswählen ..."]
[]
[null,null,"Art der Warmwasseraufbereitung",null,null,null,null,null,null,null,null,null,"Belüftungsart"]
[null,null,"Bitte auswählen ...",null,null,null,null,null,null,null,null,null,"Bitte auswählen ..."]
[]
[]
[null,null,"Nutzungseinheit Nr. 27 - verteilt sich über",null,null,null,null,null,null,null,null,"Geschoß(e)"]
[null,null,"Nutzungsart:",null,null,null,null,"Bitte auswählen ..."]
[null,null,"Geschoßangabe",null,null,null,null,"Dachgeschoß",null,null,"2. Obergeschoß",null,null,"1. Obergeschoß",null,null,"Erdgeschoß",null,null,"Keller"]
[null,null,"Nutzfläche",null,null,null,null,null,null,"m²",null,null,"m²",null,null,"m²",null,null,"m²",null,null,"m²"]
[null,null,"Raumhöhe",null,null,null,null,null,null,"m",null,null,"m",null,null,"m",null,null,"m",null,null,"m"]
[null,null,"Anzahl Räume ab 4 m²"]
[null,null,"In der Nutzungseinheit befinden sich:"]
[null,null,"Rechtsverhältnis:",null,null,null,null,"Bitte auswählen ..."]
[null,null,{"$f":"Vorgaben!$S$3","v":"Nur auszufüllen, wenn abweichend vom Gebäude lt. Pt. A des Tabellenblatte \"AGWR II\":"}]
[null,null,"Wärmebereitstellungssystem",null,null,null,null,null,null,"Art des Brennstoffes",null,null,null,null,null,null,"Wärmeabgabesystem"]
[null,null,"Bitte auswählen ...",null,null,null,null,null,null,"Bitte auswählen ...",null,null,null,null,null,null,"Bitte auswählen ..."]
[]
[null,null,"Art der Warmwasseraufbereitung",null,null,null,null,null,null,null,null,null,"Belüftungsart"]
[null,null,"Bitte auswählen ...",null,null,null,null,null,null,null,null,null,"Bitte auswählen ..."]
[]
[]
[]
[null,{"$f":"$C$1","v":"AGWR II - Statistische Angaben zu weiteren Nutzungseinheiten"}]
[null,{"$f":"IF(BauansDat<>\"\",CONCATENATE(\"betreffend Bauansuchen vom \",TEXT(BauansDat,\"TT.MM.JJJJ\"), \" - Bauwerber/in: \", Bauwerber,\", \",AdrBauwerber),CONCATENATE(\"Statistische Angaben (AGWR II)\", \" - Bauwerber/in: \", Bauwerber,\", \",AdrBauwerber))","v":"Statistische Angaben (AGWR II) - Bauwerber/in: , "}]
[]
[null,null,{"$f":"Vorgaben!$S$4","v":"AGWR II - Statistische Angaben zu weiteren Nutzungseinheiten"},null,null,null,null,null,null,null,null,null,null,null,null,null,null,null,null,9]
[]
[null,null,"Nutzungseinheit Nr. 28 - verteilt sich über",null,null,null,null,null,null,null,null,"Geschoß(e)"]
[null,null,"Nutzungsart:",null,null,null,null,"Bitte auswählen ..."]
[null,null,"Geschoßangabe",null,null,null,null,"Dachgeschoß",null,null,"2. Obergeschoß",null,null,"1. Obergeschoß",null,null,"Erdgeschoß",null,null,"Keller"]
[null,null,"Nutzfläche",null,null,null,null,null,null,"m²",null,null,"m²",null,null,"m²",null,null,"m²",null,null,"m²"]
[null,null,"Raumhöhe",null,null,null,null,null,null,"m",null,null,"m",null,null,"m",null,null,"m",null,null,"m"]
[null,null,"Anzahl Räume ab 4 m²"]
[null,null,"In der Nutzungseinheit befinden sich:"]
[null,null,"Rechtsverhältnis:",null,null,null,null,"Bitte auswählen ..."]
[null,null,{"$f":"Vorgaben!$S$3","v":"Nur auszufüllen, wenn abweichend vom Gebäude lt. Pt. A des Tabellenblatte \"AGWR II\":"}]
[null,null,"Wärmebereitstellungssystem",null,null,null,null,null,null,"Art des Brennstoffes",null,null,null,null,null,null,"Wärmeabgabesystem"]
[null,null,"Bitte auswählen ...",null,null,null,null,null,null,"Bitte auswählen ...",null,null,null,null,null,null,"Bitte auswählen ..."]
[]
[null,null,"Art der Warmwasseraufbereitung",null,null,null,null,null,null,null,null,null,"Belüftungsart"]
[null,null,"Bitte auswählen ...",null,null,null,null,null,null,null,null,null,"Bitte auswählen ..."]
[]
[]
[null,null,"Nutzungseinheit Nr. 29 - verteilt sich über",null,null,null,null,null,null,null,null,"Geschoß(e)"]
[null,null,"Nutzungsart:",null,null,null,null,"Bitte auswählen ..."]
[null,null,"Geschoßangabe",null,null,null,null,"Dachgeschoß",null,null,"2. Obergeschoß",null,null,"1. Obergeschoß",null,null,"Erdgeschoß",null,null,"Keller"]
[null,null,"Nutzfläche",null,null,null,null,null,null,"m²",null,null,"m²",null,null,"m²",null,null,"m²",null,null,"m²"]
[null,null,"Raumhöhe",null,null,null,null,null,null,"m",null,null,"m",null,null,"m",null,null,"m",null,null,"m"]
[null,null,"Anzahl Räume ab 4 m²"]
[null,null,"In der Nutzungseinheit befinden sich:"]
[null,null,"Rechtsverhältnis:",null,null,null,null,"Bitte auswählen ..."]
[null,null,{"$f":"Vorgaben!$S$3","v":"Nur auszufüllen, wenn abweichend vom Gebäude lt. Pt. A des Tabellenblatte \"AGWR II\":"}]
[null,null,"Wärmebereitstellungssystem",null,null,null,null,null,null,"Art des Brennstoffes",null,null,null,null,null,null,"Wärmeabgabesystem"]
[null,null,"Bitte auswählen ...",null,null,null,null,null,null,"Bitte auswählen ...",null,null,null,null,null,null,"Bitte auswählen ..."]
[]
[null,null,"Art der Warmwasseraufbereitung",null,null,null,null,null,null,null,null,null,"Belüftungsart"]
[null,null,"Bitte auswählen ...",null,null,null,null,null,null,null,null,null,"Bitte auswählen ..."]
[]
[]
[null,null,"Nutzungseinheit Nr. 30 - verteilt sich über",null,null,null,null,null,null,null,null,"Geschoß(e)"]
[null,null,"Nutzungsart:",null,null,null,null,"Bitte auswählen ..."]
[null,null,"Geschoßangabe",null,null,null,null,"Dachgeschoß",null,null,"2. Obergeschoß",null,null,"1. Obergeschoß",null,null,"Erdgeschoß",null,null,"Keller"]
[null,null,"Nutzfläche",null,null,null,null,null,null,"m²",null,null,"m²",null,null,"m²",null,null,"m²",null,null,"m²"]
[null,null,"Raumhöhe",null,null,null,null,null,null,"m",null,null,"m",null,null,"m",null,null,"m",null,null,"m"]
[null,null,"Anzahl Räume ab 4 m²"]
[null,null,"In der Nutzungseinheit befinden sich:"]
[null,null,"Rechtsverhältnis:",null,null,null,null,"Bitte auswählen ..."]
[null,null,{"$f":"Vorgaben!$S$3","v":"Nur auszufüllen, wenn abweichend vom Gebäude lt. Pt. A des Tabellenblatte \"AGWR II\":"}]
[null,null,"Wärmebereitstellungssystem",null,null,null,null,null,null,"Art des Brennstoffes",null,null,null,null,null,null,"Wärmeabgabesystem"]
[null,null,"Bitte auswählen ...",null,null,null,null,null,null,"Bitte auswählen ...",null,null,null,null,null,null,"Bitte auswählen ..."]
[]
[null,null,"Art der Warmwasseraufbereitung",null,null,null,null,null,null,null,null,null,"Belüftungsart"]
[null,null,"Bitte auswählen ...",null,null,null,null,null,null,null,null,null,"Bitte auswählen ..."]
[]
[]
[]
[null,{"$f":"$C$1","v":"AGWR II - Statistische Angaben zu weiteren Nutzungseinheiten"}]
[null,{"$f":"IF(BauansDat<>\"\",CONCATENATE(\"betreffend Bauansuchen vom \",TEXT(BauansDat,\"TT.MM.JJJJ\"), \" - Bauwerber/in: \", Bauwerber,\", \",AdrBauwerber),CONCATENATE(\"Statistische Angaben (AGWR II)\", \" - Bauwerber/in: \", Bauwerber,\", \",AdrBauwerber))","v":"Statistische Angaben (AGWR II) - Bauwerber/in: , "}]
[]
[null,null,{"$f":"Vorgaben!$S$4","v":"AGWR II - Statistische Angaben zu weiteren Nutzungseinheiten"},null,null,null,null,null,null,null,null,null,null,null,null,null,null,null,null,10]
[]
[null,null,"Nutzungseinheit Nr. 31 - verteilt sich über",null,null,null,null,null,null,null,null,"Geschoß(e)"]
[null,null,"Nutzungsart:",null,null,null,null,"Bitte auswählen ..."]
[null,null,"Geschoßangabe",null,null,null,null,"Dachgeschoß",null,null,"2. Obergeschoß",null,null,"1. Obergeschoß",null,null,"Erdgeschoß",null,null,"Keller"]
[null,null,"Nutzfläche",null,null,null,null,null,null,"m²",null,null,"m²",null,null,"m²",null,null,"m²",null,null,"m²"]
[null,null,"Raumhöhe",null,null,null,null,null,null,"m",null,null,"m",null,null,"m",null,null,"m",null,null,"m"]
[null,null,"Anzahl Räume ab 4 m²"]
[null,null,"In der Nutzungseinheit befinden sich:"]
[null,null,"Rechtsverhältnis:",null,null,null,null,"Bitte auswählen ..."]
[null,null,{"$f":"Vorgaben!$S$3","v":"Nur auszufüllen, wenn abweichend vom Gebäude lt. Pt. A des Tabellenblatte \"AGWR II\":"}]
[null,null,"Wärmebereitstellungssystem",null,null,null,null,null,null,"Art des Brennstoffes",null,null,null,null,null,null,"Wärmeabgabesystem"]
[null,null,"Bitte auswählen ...",null,null,null,null,null,null,"Bitte auswählen ...",null,null,null,null,null,null,"Bitte auswählen ..."]
[]
[null,null,"Art der Warmwasseraufbereitung",null,null,null,null,null,null,null,null,null,"Belüftungsart"]
[null,null,"Bitte auswählen ...",null,null,null,null,null,null,null,null,null,"Bitte auswählen ..."]
[]
[]
[null,null,"Nutzungseinheit Nr. 32 - verteilt sich über",null,null,null,null,null,null,null,null,"Geschoß(e)"]
[null,null,"Nutzungsart:",null,null,null,null,"Bitte auswählen ..."]
[null,null,"Geschoßangabe",null,null,null,null,"Dachgeschoß",null,null,"2. Obergeschoß",null,null,"1. Obergeschoß",null,null,"Erdgeschoß",null,null,"Keller"]
[null,null,"Nutzfläche",null,null,null,null,null,null,"m²",null,null,"m²",null,null,"m²",null,null,"m²",null,null,"m²"]
[null,null,"Raumhöhe",null,null,null,null,null,null,"m",null,null,"m",null,null,"m",null,null,"m",null,null,"m"]
[null,null,"Anzahl Räume ab 4 m²"]
[null,null,"In der Nutzungseinheit befinden sich:"]
[null,null,"Rechtsverhältnis:",null,null,null,null,"Bitte auswählen ..."]
[null,null,{"$f":"Vorgaben!$S$3","v":"Nur auszufüllen, wenn abweichend vom Gebäude lt. Pt. A des Tabellenblatte \"AGWR II\":"}]
[null,null,"Wärmebereitstellungssystem",null,null,null,null,null,null,"Art des Brennstoffes",null,null,null,null,null,null,"Wärmeabgabesystem"]
[null,null,"Bitte auswählen ...",null,null,null,null,null,null,"Bitte auswählen ...",null,null,null,null,null,null,"Bitte auswählen ..."]
[]
[null,null,"Art der Warmwasseraufbereitung",null,null,null,null,null,null,null,null,null,"Belüftungsart"]
[null,null,"Bitte auswählen ...",null,null,null,null,null,null,null,null,null,"Bitte auswählen ..."]
[]
[]
[null,null,"Nutzungseinheit Nr. 33 - verteilt sich über",null,null,null,null,null,null,null,null,"Geschoß(e)"]
[null,null,"Nutzungsart:",null,null,null,null,"Bitte auswählen ..."]
[null,null,"Geschoßangabe",null,null,null,null,"Dachgeschoß",null,null,"2. Obergeschoß",null,null,"1. Obergeschoß",null,null,"Erdgeschoß",null,null,"Keller"]
[null,null,"Nutzfläche",null,null,null,null,null,null,"m²",null,null,"m²",null,null,"m²",null,null,"m²",null,null,"m²"]
[null,null,"Raumhöhe",null,null,null,null,null,null,"m",null,null,"m",null,null,"m",null,null,"m",null,null,"m"]
[null,null,"Anzahl Räume ab 4 m²"]
[null,null,"In der Nutzungseinheit befinden sich:"]
[null,null,"Rechtsverhältnis:",null,null,null,null,"Bitte auswählen ..."]
[null,null,{"$f":"Vorgaben!$S$3","v":"Nur auszufüllen, wenn abweichend vom Gebäude lt. Pt. A des Tabellenblatte \"AGWR II\":"}]
[null,null,"Wärmebereitstellungssystem",null,null,null,null,null,null,"Art des Brennstoffes",null,null,null,null,null,null,"Wärmeabgabesystem"]
[null,null,"Bitte auswählen ...",null,null,null,null,null,null,"Bitte auswählen ...",null,null,null,null,null,null,"Bitte auswählen ..."]
[]
[null,null,"Art der Warmwasseraufbereitung",null,null,null,null,null,null,null,null,null,"Belüftungsart"]
[null,null,"Bitte auswählen ...",null,null,null,null,null,null,null,null,null,"Bitte auswählen ..."]
[]
[]
[]
[null,{"$f":"$C$1","v":"AGWR II - Statistische Angaben zu weiteren Nutzungseinheiten"}]
[null,{"$f":"IF(BauansDat<>\"\",CONCATENATE(\"betreffend Bauansuchen vom \",TEXT(BauansDat,\"TT.MM.JJJJ\"), \" - Bauwerber/in: \", Bauwerber,\", \",AdrBauwerber),CONCATENATE(\"Statistische Angaben (AGWR II)\", \" - Bauwerber/in: \", Bauwerber,\", \",AdrBauwerber))","v":"Statistische Angaben (AGWR II) - Bauwerber/in: , "}]

{"sheet":"Vorgaben","index":4,"n_rows":34,"n_cols":19,"rows_kept":34,"cut":false,"hidden":true,"merged":[]}
["Dropdown Gemeinden","Dropdown Bauweise","Dropdown Flächenwidmung","Dropdown Zufahrt","Dropdown Brandschutzeinrichtungen","Dropdown Wasserversorgung","Dropdown Niederschlagswasserentsorgung","Dropdown Energieversorgung","Dropdown Abwasserentsorgung","Dropdown Bauweisen","Dropdown Nutzungsarten","Dropdown Rechtsverhältnis","Dropdown Wärmebereitstellungssystem","Dropdown Brennstoff","Dropdown Wärmeabgabesystem","Dropdown Warmwasseraufbereitung","Dropdown Belüftung","Dropdown Eigentümer","Texte Nutzungseinheiten"]
["Bitte auswählen ...","Bitte auswählen …","Bitte auswählen ...","Bitte auswählen ...","Bitte auswählen ...","Bitte auswählen ...","Bitte auswählen ...","Bitte auswählen ...","Bitte auswählen ...","Bitte auswählen ...","Bitte auswählen ...","Bitte auswählen ...","Bitte auswählen ...","Bitte auswählen ...","Bitte auswählen ...","Bitte auswählen ...","Bitte auswählen ...","Bitte auswählen ...","Nachfolgende Daten sind nur dann bekannt zu geben, wenn sie vom Gebäude lt. Pt. A abweichen:"]
["9913 Abfaltersbach","Mauerwerkbau","Bauland, Wohngebiet (§ 38, Abs. 1, TROG 2016)","Gemeindestraße","Feuerlöscher","Anschluss an die Gemeindewasserleitung","Versickerung am Bauplatz","Anschluss an ein Netz (TINETZ)","Anschluss an Gemeindekanal (Vertrag mit Entsorger erforderlich)","Geschlossene","Wohnung","Eigenbenützung durch den Gebäudeeigentümer (Eigenheime)","Kessel: Standardkessel","Heizöl Extraleicht","Kleinflächige Wärmeabgabe","Kombinierte Erzeugung mit Raumwärme","Natürliche Lüftung (Fensterlüftung)","Privatperson(en)","Nur auszufüllen, wenn abweichend vom Gebäude lt. Pt. A des Tabellenblatte \"AGWR II\":"]
["9951 Ainet","Stahlbetonskelett","Bauland, Wohngebiet mit zugelassenem Freizeitwohnsitz [§ 38 (1) iVm § 13 TROG 2016]","Landesstraße","Rauchmelder","Anschluss an eine Genossenschaftsleitung","Anschluss an ein Kanalnetz","Sonstiger Energieversorger","Kleinkläranlage (wasserrechtl. Bewilligung erforderlich)","Offene","Wohnung/Arbeitsstätte","Wohnungseigentum (Wohnungseigentumsgesetz)","Kessel: Niedertemperaturkessel","Heizöl Leicht","Flächenheizung","Getrennte Erzeugung mittels separatem Kessel","Mechanische Lüftung: Abluftanlage","Bund","AGWR II - Statistische Angaben zu weiteren Nutzungseinheiten"]
["9908 Amlach","Stahlskelett","Bauland, gemischtes Wohngebiet (§ 38, Abs. 2, TROG 2016)","Bundesstraße","Sprenkelanlage udgl.","Eigenversorgung (Trinkwasserattest erforderlich)","Einleitung in Gewässer (wasserrechtl. Bewilligung erforderlich)","Eigenversorgung","Sammelgrube","Gekuppelte","Wohnfläche für Gemeinschaften","Hauptmiete (einschl. Nutzungswohnungen v. Genossenschaften)","Kessel: Brennwertkessel","Erdgas","Luftheizung","Getrennte Erzeugung mittels separater Nah-/Fernwärme","Mechanische Lüftung: Zu- u. Abluftanlage mit Wärmerückgewinnung","Land"]
["9912 Anras","Holzriegelkonstruktion","Bauland, Gewerbe- und Industriegebiet (§ 39 TROG 2016)","Privatweg/Servitutsweg (rechtliche Sicherstellung ist nachzuweisen)",null,"Kein Anschluss vorhanden",null,"Kein Anschluss vorhanden","Sickergrube (wasserrechtl. Bewilligung erforderlich)","Besondere","Hotel und andere Einheiten für kurzfristige Beherbergung","Dienst- oder Naturalwohnung","Wärmepumpe, Außenluft/Wasser","Flüssiggas","Gebläsekonvektor","Getrennte Erzeugung mittels elektrischer Energie","Raumtechnische Anlage für Befeuchtung","Gemeinde"]
["9911 Assling",null,"Bauland, allgemeines Mischgebiet (§ 40 TROG 2016)","Öffentlich rechtliche Straßeninteressentschaft(en)",null,null,null,null,"nicht vorhanden","Keine","Büroflächen","Sonst. Rechtsverhältnis (Benützung ohne Entgelt durch Verwandte des Hauseigentümers etc.)","Wärmepume, Sole/Wasser","Nah- und Fernwärme","Nicht beheizt","Getrennte Erzeugung mittels separater Wärmepumpe","Raumtechnische Anlage für Kühlung","andere öffentliche Körperschaft"]
["9931 Außervillgraten",null,"Bauland, Mischgebiet - Kerngebiet (§ 40 TROG 2016)",null,null,null,null,null,null,null,"Groß- und Einzelhandelsflächen",null,"Wärmepumpe, Wasser/Wasser","Kohle",null,"Thermische Solaranlage kombiniert mit Heizsystem","Raumtechnische Anlage für Heizung","Gemeinnützige Bauvereinigung"]
["9991 Dölsach",null,"Bauland, Mischgebiet - Tourismusgebiet (§ 40 TROG 2016)",null,null,null,null,null,null,null,"Verkehr und Nachrichtenwesen",null,"Wärmepumpe, sonstige","Scheitholz",null,"Thermische Solaranlage kombiniert mit andere","Keine Belüftung","sonstige Unternehmen"]
["9905 Gaimberg",null,"Bauland, landwirtschaftliches Mischgebiet (§ 40 TROG 2016)",null,null,null,null,null,null,null,"Industrie und Lagerei",null,"Thermische Solaranlage mit Beitrag zur Raumheizung","Hackschnitzel",null,"Kein Warmwasser",null,"anderer Eigentümer"]
["9919 Heinfels",null,"Freiland (§ 41 TROG 2016)",null,null,null,null,null,null,null,"Kultur, Freizeit, Bildungs- und Gesundheitswesen",null,"Fernwärme","Holz-Pellets"]
["9961 Hopfgarten in Defereggen",null,"Sonderfläche (§ 43 TROG 2016)",null,null,null,null,null,null,null,"Landwirtschaftliche Nutzung",null,"Nahwärme (Blockheizung)","Sonstige Biomasse"]
["9932 Innervillgraten",null,"Sonderfläche für Hofstellen (§ 44 TROG 2016)",null,null,null,null,null,null,null,"Privatgarage",null,"Raumheizgerät bzw. Herd","Strom"]
["9992 Iselsberg-Stronach",null,"Sonderfläche für landwirtschaftliche Intensivtierhaltung (§ 45 TROG 2016)",null,null,null,null,null,null,null,"Kirche, sonstige Sakralbauten",null,"Sonstige Wärmebereitstellungssysteme","andere"]
["9981 Kals am Großglockner",null,"Sonderfläche für Austraghäuser (§ 46 TROG 2016)",null,null,null,null,null,null,null,"Pseudobaulichkeit (Zelte, Wohnwägen etc.)",null,"Nicht beheizt","Nicht beheizt"]
["9941 Kartitsch",null,"Sonderfläche f. sonst. land- u. forstwirtschaftl. Geb. u. Anlagen (§ 47 TROG 2016)",null,null,null,null,null,null,null,"Sonstiges Bauwerk"]
["9906 Lavant",null,"Sonderfläche für Beherbergungsgroßbetriebe (§ 48 TROG 2016)",null,null,null,null,null,null,null,"Dachbodenfläche"]
["9909 Leisach",null,"Sonderfläche für Handelsbetriebe (§ 48a TROG 2016)",null,null,null,null,null,null,null,"Kellerfläche"]
["9971 Matrei in Osttirol",null,"Sonderfläche für Einkaufszentren (§ 49 TROG 2016)",null,null,null,null,null,null,null,"Verkehrsflächen"]
["9782 Nikolsdorf",null,"Sonderfläche für UVP-pflichtige Anlagen (§ 49a TROG 2016)",null,null,null,null,null,null,null,"Gemeinschaftliche Nutzflächen (Sauna, Partyraum etc.)"]
["9990 Nußdorf-Debant",null,"Sonderfläche für Tankstellen (§ 49b TROG 2016)"]
["9903 Oberlienz",null,"Sonderfläche für Sportanlagen (§ 50 TROG 2016)"]
["9942 Obertilliach",null,"Sonderflächen f. Anl. z. Aufbereitung mineral. Rohstoffe (§ 50a TROG 2016)"]
["9974 Prägraten am Großvenediger",null,"Sonderflächen für Widmungen mit Teilfestlegungen (§ 51 TROG 2016)"]
["9954 Schlaiten",null,"Vorbehaltsflächen für den Gemeinbedarf (§ 52 TROG 2016)"]
["9920 Sillian",null,"Vorbehaltsflächen für den geförderten Wohnbau (§ 52a TROG 2016)"]
["9963 St. Jakob in Defereggen"]
["9952 St. Johann im Walde"]
["9962 St. Veit in Defereggen"]
["9918 Strassen"]
["9904 Thurn"]
["9907 Tristach"]
["9943 Untertilliach"]
["9972 Virgen"]